NUMERO_MANDATO;RIGA_MANDATO;QUIET;IMPORTO_RIGA;IMPORTO_MANDATO;BENEFICIARIO;CIG;TITOLO_PAGAMENTO;DATA_MANDATO;CAPITOLO;ARTICOLO;NUMERO_IMPEGNO;TITOLO;DESCR_TITOLO;LIVELLO_II;DESCR_LIVELLO_II;LIVELLO_III;DESCR_LIVELLO_III;LIVELLO_IV;DESCR_LIVELLO_IV;LIVELLO_V;DESCR_LIVELLO_V;DATA_PAG_EFF
1079;1;0;1.580,00;1.580,00;O.D.V. PROTEZIONE CIVILE DI SAN ZENONE DEGLI EZZELINI; ;LIQUIDAZIONE DEL SETTIMO ACCONTO DEL CONTRIBUTO ALL ASSOCIAZIONE VOLONTARI GRUPPO DI PROTEZIONE CIVILE DI SAN ZENONE DEGLI EZZELINI - ANNO 2020.;01/10/2020;382;1;114;1;Spese correnti;4;Trasferimenti correnti;1;Trasferimenti correnti a Amministrazioni Pubbliche;4;Trasferimenti correnti a organismi interni e/o unità locali della amministrazione;1;Trasferimenti correnti a organismi interni e/o unità locali della amministrazione;01/10/2020
1080;1;0;14.036,62;14.036,62;AZIENDA U.L.S.S. N.2  MARCA TREVIGIANA; ;TUTELA SOCIALE MINORILE, ONERI PER LE FUNZIONI DELEGATE - IMPEGNO E LIQUIDAZIONE SECONDO E TERZO QUADRIMESTRE 2019 A FAVORE DELLAZIENDA U.L.S.S. N. 2 MARCA TREVIGIANA (EX ULSS N. 8);02/10/2020;580;0;310;1;Spese correnti;4;Trasferimenti correnti;1;Trasferimenti correnti a Amministrazioni Pubbliche;2;Trasferimenti correnti a Amministrazioni Locali;20;Trasferimenti correnti a Aziende sanitarie locali  a titolo di finanziamento del servizio sanitario nazionale;02/10/2020
1081;1;0;15.183,07;15.183,07;AZIENDA U.L.S.S. N.2  MARCA TREVIGIANA; ;QUOTE CAPITARIE 2020 - DISTRETTO DI ASOLO.;05/10/2020;580;0;311;1;Spese correnti;4;Trasferimenti correnti;1;Trasferimenti correnti a Amministrazioni Pubbliche;2;Trasferimenti correnti a Amministrazioni Locali;20;Trasferimenti correnti a Aziende sanitarie locali  a titolo di finanziamento del servizio sanitario nazionale;05/10/2020
1082;1;0;154.324,73;154.324,73;AZIENDA U.L.S.S. N.2  MARCA TREVIGIANA; ;QUOTE CAPITARIE 2020 - DISTRETTO DI ASOLO. SALDO.;05/10/2020;580;0;311;1;Spese correnti;4;Trasferimenti correnti;1;Trasferimenti correnti a Amministrazioni Pubbliche;2;Trasferimenti correnti a Amministrazioni Locali;20;Trasferimenti correnti a Aziende sanitarie locali  a titolo di finanziamento del servizio sanitario nazionale;05/10/2020
1083;1;0;788;788;TEDESCO MARIA PIA; ;RIMBORSO SPESA PER SERVIZIO DI ANIMAZIONE ANZIANI AL SOGGIORNO CLIMATICO DI JESOLO (VE) 2020.;07/10/2020;578;1;313;1;Spese correnti;3;Acquisto di beni e servizi;2;Acquisto di servizi;99;Altri servizi;999;Altri servizi diversi n.a.c.;07/10/2020
1084;1;0;540;540;COMANDO PROVINCIALE VIGILI DEL FUOCO-SERV.PREV.INCENDI; ;IMPEGNO DI SPESA E LIQUIDAZIONE ONERI DI ISTRUTTORIA AL DIPARTIMENTO VIGILI DEL FUOCO PER VALUTAZIONE PROGETTO DEI LAVORI PER LISTITUZIONE DEL MUSEO DIDATTICO MULTIMEDIALE DELLANTICA PIEVE - CUP: C41B17000650006.;09/10/2020;313;1;332;1;Spese correnti;3;Acquisto di beni e servizi;2;Acquisto di servizi;9;Manutenzione ordinaria e riparazioni;4;Manutenzione ordinaria e riparazioni di impianti e macchinari;09/10/2020
1087;1;0;48;48;BERTONCELLO PAOLA ECONOMO COMUNALE; ;Rimborso bolletta N. 5 del 27-08-20 Acquisto di materiale di cancelleria per ufficio servizi scolastici.;13/10/2020;234;0;269;1;Spese correnti;3;Acquisto di beni e servizi;1;Acquisto di beni;2;Altri beni di consumo;1;Carta, cancelleria e stampati;13/10/2020
1088;1;0;62,69;62,69;OMESSO NOMINATIVO NEL RISPETTO DELLA NORMATIVA SULLA PROTEZIONE DATI PERSONALI; ;FATTURA S.E.N. N. 263556805039016 DEL 08/10/2020 BIMESTRE SETT.-OTT. 2020.;15/10/2020;576;0;90;1;Spese correnti;4;Trasferimenti correnti;2;Trasferimenti correnti a Famiglie;2;Interventi assistenziali;999;Altri assegni e sussidi assistenziali;15/10/2020
1121;1;0;5.961,21;5.961,21;AMMINISTRATORI COMUNALI; ;STIPENDI MESE DI: OTTOBRE 20;16/10/2020;2;0;1;1;Spese correnti;3;Acquisto di beni e servizi;2;Acquisto di servizi;1;Organi e incarichi istituzionali dell'amministrazione;1;Organi istituzionali dell'amministrazione - Indennità;16/10/2020
1124;1;0;810;810;CENTRO STUDI AMMINISTRATIVI DELLA M.T.; ;SALDO Fatt.n. 526/2020  del 15/09/2020 PROGETTO UNICO PER L'IMPRESA;19/10/2020;51;1;572;1;Spese correnti;3;Acquisto di beni e servizi;2;Acquisto di servizi;99;Altri servizi;3;Quote di associazioni;19/10/2020
1125;1;0;514,18;514,18;AS.COM SERVIZI DEL MANDAMENTO S.R.L.; ;SALDO Fatt.n. 00035/02  del 17/09/2020 LOCAZIONE CENTRO PER LIMPIEGO:16.09-15.12;19/10/2020;515;0;89;1;Spese correnti;4;Trasferimenti correnti;1;Trasferimenti correnti a Amministrazioni Pubbliche;2;Trasferimenti correnti a Amministrazioni Locali;999;Trasferimenti correnti a altre Amministrazioni Locali n.a.c.;19/10/2020
1126;1;0;912,82;912,82;POSTEL S.P.A.;Z0B2DA2D69;SALDO Fatt.n. 2020304658  del 11/09/2020 PRODOTTI POSTALI;19/10/2020;26;0;220;1;Spese correnti;3;Acquisto di beni e servizi;2;Acquisto di servizi;16;Servizi amministrativi;2;Spese postali;19/10/2020
1127;1;0;9.725,10;9.725,10;FCA FLEET & TENDERS S.R.L.;ZE32BDD74B;SALDO Fatt.n. AP19000450  del 21/09/2020 ACQUISTO AUTO PER SERVIZI SOCIALI;19/10/2020;1078;0;42;2;Spese in conto capitale;2;Investimenti fissi lordi e acquisto di terreni;1;Beni materiali;1;Mezzi di trasporto ad uso civile, di sicurezza e ordine pubblico;999;Mezzi di trasporto ad uso civile, di sicurezza e ordine pubblico n.a.c.;19/10/2020
1128;1;0;109,8;109,8;MyO S.P.A.;Z9D2E4790B;SALDO Fatt.n. 2040/200024009  del 18/09/2020 STAMPATI PER ELEZIONI REGIONALI 20 E 21 SETTEMBRE 2020;19/10/2020;9;2;289;1;Spese correnti;3;Acquisto di beni e servizi;1;Acquisto di beni;2;Altri beni di consumo;10;Beni per consultazioni elettorali;19/10/2020
1129;1;0;156,16;156,16;NEULIFT SERVICE TRIVENETO SRL;ZDF2E2C3E5;SALDO Fatt.n. 100109  del 23/09/2020 MANUTENZIONE ASCENSORI;19/10/2020;235;0;291;1;Spese correnti;3;Acquisto di beni e servizi;2;Acquisto di servizi;5;Utenze e canoni;999;Utenze e canoni per altri servizi n.a.c.;19/10/2020
1130;1;0;439,21;439,21;TIRO A SEGNO NAZIONALE-SEZ.BASSANO GRAPPA;Z122C159F0;SALDO Fatt.n. 3/001  del 25/09/2020 ADDESTRAMENTO OBBLIGATORIO POLIZIA LOCALE - ANNO 2020.;19/10/2020;178;1;166;1;Spese correnti;3;Acquisto di beni e servizi;2;Acquisto di servizi;13;Servizi ausiliari per il funzionamento dell'ente;999;Altri servizi ausiliari n.a.c.;19/10/2020
1131;1;0;1.626,87;1.626,87;NUVOLAPOINT DI FLAJS ALESSANDRO;Z1C2E6FBC7;SALDO Fatt.n. 517/PA  del 25/09/2020 ACQUISTO DI TRE PERSONAL COMPUTER PER UFF. COMUNALI;19/10/2020;746;0;324;2;Spese in conto capitale;2;Investimenti fissi lordi e acquisto di terreni;1;Beni materiali;7;Hardware;2;Postazioni di lavoro;19/10/2020
1132;1;0;312,83;312,83;LA IDROFERRAMENTA SRL;Z3D2D0846B;SALDO Fatt.n. 71/PA  del 30/09/2020 FORNITURA FERRAMENTA;19/10/2020;591;0;161;1;Spese correnti;3;Acquisto di beni e servizi;1;Acquisto di beni;2;Altri beni di consumo;999;Altri beni e materiali di consumo n.a.c.;19/10/2020
1133;1;0;28,06;28,06;SICURITALIA IVRI S.P.A.;Z3827208DE;SALDO Fatt.n. 9117011250  del 30/09/2020 SERVIZI ISPETTIVI - SETTEMBRE 2020;19/10/2020;252;0;170;1;Spese correnti;3;Acquisto di beni e servizi;2;Acquisto di servizi;5;Utenze e canoni;999;Utenze e canoni per altri servizi n.a.c.;19/10/2020
1134;1;0;805,2;805,2;SCOMAZZON ANTINFORTUNISTICA DI SCOMAZZON D.& C.snc;ZAC2DC23AA;SALDO Fatt.n. 1308 FTE  del 30/09/2020 FORNITURA MATERIALE;19/10/2020;33;0;241;1;Spese correnti;3;Acquisto di beni e servizi;1;Acquisto di beni;2;Altri beni di consumo;3;Equipaggiamento;19/10/2020
1135;1;0;161,04;161,04;MyO S.P.A.;ZE32E3250F;SALDO Fatt.n. 2040/200026449  del 30/09/2020 KIT ELEZIONI SEGNALETICA COVID -19;19/10/2020;9;2;283;1;Spese correnti;3;Acquisto di beni e servizi;1;Acquisto di beni;2;Altri beni di consumo;10;Beni per consultazioni elettorali;19/10/2020
1136;1;0;1.962,42;1.962,42;OLIVETTI S.P.A.;ZC92648F71;SALDO Fatt.n. A20020201000036968  del 30/09/2020 CONTRATTO FOTOCOPIATRICI;19/10/2020;34;0;508;1;Spese correnti;3;Acquisto di beni e servizi;2;Acquisto di servizi;5;Utenze e canoni;999;Utenze e canoni per altri servizi n.a.c.;19/10/2020
1137;1;0;199,76;199,76;BELLNET INTERNATIONAL S.R.L.;Z752BFBD5F;SALDO Fatt.n. FATTPA 2207_20  del 30/09/2020 TRAFFICO TELEFONICO;19/10/2020;34;0;58;1;Spese correnti;3;Acquisto di beni e servizi;2;Acquisto di servizi;5;Utenze e canoni;1;Telefonia fissa;19/10/2020
1138;1;0;12.180,48;12.180,48;TREVISAN MAURIZIO;ZE62DBC190;SALDO Fatt.n. 19  del 08/10/2020 REDAZIONE PROGETTO ARCHITETTONICO MUNICIPIO;19/10/2020;744;0;235;2;Spese in conto capitale;2;Investimenti fissi lordi e acquisto di terreni;1;Beni materiali;9;Beni immobili;999;Beni immobili n.a.c.;19/10/2020
1139;1;0;35.057,35;35.057,35;STUDIO ZONCHEDDU E ASSOCIATI;Z462AB74E3;SALDO Fatt.n. 68  del 06/10/2020 PROGETTAZIONE MUNICIPIO;19/10/2020;741;0;549;2;Spese in conto capitale;2;Investimenti fissi lordi e acquisto di terreni;3;Beni immateriali;5;Incarichi professionali per la realizzazione di investimenti;1;Incarichi professionali per la realizzazione di investimenti;19/10/2020
1140;1;0;60.221,50;60.221,50;L.M. COSTRUZIONI GENERALI SRL;829888588B;SALDO Fatt.n. 2020    14/E  del 07/10/2020 LAVORI DI SISTEMAZIONE MARCIAPIEDE NEL TERRITORIO;19/10/2020;1007;4;617;2;Spese in conto capitale;2;Investimenti fissi lordi e acquisto di terreni;1;Beni materiali;9;Beni immobili;12;Infrastrutture stradali;19/10/2020
1141;1;0;3.149,25;3.149,25;CASA DI RIPOSO 'AITA'; ;SALDO Fatt.n. 344/B  del 30/09/2020 SERVIZIO DI AD - AGOSTO 2020;19/10/2020;562;1;240;1;Spese correnti;3;Acquisto di beni e servizi;2;Acquisto di servizi;15;Contratti di servizio pubblico;9;Contratti di servizio di assistenza sociale domiciliare;19/10/2020
1142;1;0;43,92;43,92;CAF CGN SPA;Z7C2BFC524;SALDO Fatt.n. 34652  del 30/09/2020 PRESTAZIONI PER SERVIZI SOCIALI;19/10/2020;559;0;54;1;Spese correnti;3;Acquisto di beni e servizi;2;Acquisto di servizi;99;Altri servizi;999;Altri servizi diversi n.a.c.;19/10/2020
1143;1;0;16,84;217,19;MAGGIOLI SPA;ZD52E4796E;SALDO Fatt.n. 0002136895  del 30/09/2020 FOGLI SUPPLETIVI PER STATO CIVILE;19/10/2020;37;0;290;1;Spese correnti;3;Acquisto di beni e servizi;1;Acquisto di beni;2;Altri beni di consumo;1;Carta, cancelleria e stampati;19/10/2020
1143;2;0;200,35;217,19;MAGGIOLI SPA;ZD52E4796E;SALDO Fatt.n. 0002136896  del 30/09/2020 REGISTRI DI STATO CIVILE;19/10/2020;37;0;290;1;Spese correnti;3;Acquisto di beni e servizi;1;Acquisto di beni;2;Altri beni di consumo;1;Carta, cancelleria e stampati;19/10/2020
1144;1;0;887,9;887,9;SERVIZI TREVISO SRL;Z7C2BFC524;SALDO Fatt.n. 2020/39/137  del 02/10/2020 PRESTAZIONI PER SERVIZI SOCIALI;19/10/2020;559;0;54;1;Spese correnti;3;Acquisto di beni e servizi;2;Acquisto di servizi;99;Altri servizi;999;Altri servizi diversi n.a.c.;19/10/2020
1145;1;0;1.041,60;1.041,60;KIRIKU' SOCIETA' COOPERATIVA SOCIALE ONLUS;ZFA2BFBEE7;SALDO Fatt.n. 875  del 30/09/2020 EDUCATIVA DOMICILARE - SETTEMBRE 2020;19/10/2020;559;0;56;1;Spese correnti;3;Acquisto di beni e servizi;2;Acquisto di servizi;99;Altri servizi;999;Altri servizi diversi n.a.c.;19/10/2020
1146;1;0;-1.214,39;2.823,93;UNICOOPER SERVIZI S.C.R.L.;ZDB2BDF192;SALDO Fatt.n. 1580  del 16/09/2020 STORNO FT 1283 DEL 31/07/2020 PER ERRATA CAUSALE;20/10/2020;561;3;274;1;Spese correnti;3;Acquisto di beni e servizi;2;Acquisto di servizi;13;Servizi ausiliari per il funzionamento dell'ente;2;Servizi di pulizia e lavanderia;20/10/2020
1146;2;0;-1.089,09;2.823,93;UNICOOPER SERVIZI S.C.R.L.;ZDB2BDF192;SALDO Fatt.n. 1579  del 16/09/2020 STORNO FT 1133 DEL 30/06/2020 PER ERRATA CAUSALE;20/10/2020;561;3;274;1;Spese correnti;3;Acquisto di beni e servizi;2;Acquisto di servizi;13;Servizi ausiliari per il funzionamento dell'ente;2;Servizi di pulizia e lavanderia;20/10/2020
1146;3;0;520,45;2.823,93;UNICOOPER SERVIZI S.C.R.L.;ZDB2BDF192;SALDO Fatt.n. 1528  del 31/08/2020 SANIFICAZIONE STRAORD. X COVID - LA ROGGIA - AGOSTO 2020;20/10/2020;561;3;274;1;Spese correnti;3;Acquisto di beni e servizi;2;Acquisto di servizi;13;Servizi ausiliari per il funzionamento dell'ente;2;Servizi di pulizia e lavanderia;20/10/2020
1146;4;0;1.089,09;2.823,93;UNICOOPER SERVIZI S.C.R.L.;ZDB2BDF192;SALDO Fatt.n. 1583  del 16/09/2020 SANIFICAZIONE X COVID LA ROGGIA - GIUGNO 2020;20/10/2020;561;3;274;1;Spese correnti;3;Acquisto di beni e servizi;2;Acquisto di servizi;13;Servizi ausiliari per il funzionamento dell'ente;2;Servizi di pulizia e lavanderia;20/10/2020
1146;5;0;1.089,09;2.823,93;UNICOOPER SERVIZI S.C.R.L.;ZDB2BDF192;SALDO Fatt.n. 1133  del 30/06/2020 PULIZIE CENTRO LA ROGGIA - GIUGNO 2020;20/10/2020;561;3;274;1;Spese correnti;3;Acquisto di beni e servizi;2;Acquisto di servizi;13;Servizi ausiliari per il funzionamento dell'ente;2;Servizi di pulizia e lavanderia;20/10/2020
1146;6;0;1.214,39;2.823,93;UNICOOPER SERVIZI S.C.R.L.;ZDB2BDF192;SALDO Fatt.n. 1584  del 16/09/2020 SANIFICAZIONE CENTRO POLIVAL.-LA ROGGIA-LUGLIO 2020;20/10/2020;561;3;274;1;Spese correnti;3;Acquisto di beni e servizi;2;Acquisto di servizi;13;Servizi ausiliari per il funzionamento dell'ente;2;Servizi di pulizia e lavanderia;20/10/2020
1146;7;0;1.214,39;2.823,93;UNICOOPER SERVIZI S.C.R.L.;ZDB2BDF192;SALDO Fatt.n. 1283  del 31/07/2020 PULIZIE CENTRO LA ROGGIA - LUGLIO 2020;20/10/2020;561;3;274;1;Spese correnti;3;Acquisto di beni e servizi;2;Acquisto di servizi;13;Servizi ausiliari per il funzionamento dell'ente;2;Servizi di pulizia e lavanderia;20/10/2020
1147;1;0;1.781,82;3.563,64;UNICOOPER SERVIZI S.C.R.L.;ZDB2BDF192;SALDO Fatt.n. 1527  del 31/08/2020 SANIFICAZIONE STRAORDINARIA X COVID  ED. COMUNALI - AGOSTO 2020;20/10/2020;34;2;45;1;Spese correnti;3;Acquisto di beni e servizi;2;Acquisto di servizi;13;Servizi ausiliari per il funzionamento dell'ente;2;Servizi di pulizia e lavanderia;20/10/2020
1147;2;0;1.781,82;3.563,64;UNICOOPER SERVIZI S.C.R.L.;ZDB2BDF192;SALDO Fatt.n. 1727  del 30/09/2020 SANIFICAZIONE STRAORDINARIA X COVID - SETTEMBRE 2020;20/10/2020;34;2;45;1;Spese correnti;3;Acquisto di beni e servizi;2;Acquisto di servizi;13;Servizi ausiliari per il funzionamento dell'ente;2;Servizi di pulizia e lavanderia;20/10/2020
1148;1;0;317,1;317,1;OMESSO NOMINATIVO NEL RISPETTO DELLA NORMATIVA SULLA PROTEZIONE DATI PERSONALI; ;FATTURA CASA DI RIPOSO AITA N. 359/B DEL 05/10/2020 PER PASTI A DOMICILIO MESE DI SETTEMBRE 2020.;21/10/2020;576;0;316;1;Spese correnti;4;Trasferimenti correnti;2;Trasferimenti correnti a Famiglie;2;Interventi assistenziali;999;Altri assegni e sussidi assistenziali;21/10/2020
1149;1;0;111,96;111,96;OMESSO NOMINATIVO NEL RISPETTO DELLA NORMATIVA SULLA PROTEZIONE DATI PERSONALI; ;FATTURA CASA DI RIPOSO AITA N. 358/B DEL 05/10/2020 PER PASTI A DOMICILIO MESE SETTEMBRE 2020.;21/10/2020;576;0;90;1;Spese correnti;4;Trasferimenti correnti;2;Trasferimenti correnti a Famiglie;2;Interventi assistenziali;999;Altri assegni e sussidi assistenziali;21/10/2020
1150;1;0;69,03;69,03;OMESSO NOMINATIVO NEL RISPETTO DELLA NORMATIVA SULLA PROTEZIONE DATI PERSONALI; ;FATTURA CONTARINA S.p.A. n. 01697/0001311 DEL 01/10/2020.;21/10/2020;576;0;90;1;Spese correnti;4;Trasferimenti correnti;2;Trasferimenti correnti a Famiglie;2;Interventi assistenziali;999;Altri assegni e sussidi assistenziali;21/10/2020
1152;1;0;22;22;PREFETTURA-UFFICIO TERRITORIALE DEL GOVERNO DI TREVISO; ;IMPEGNO E LIQUIDAZIONE SPESA A FAVORE DELLA PREFETTURA - UFFICIO TERRITORIALE DEL GOVERNO DI TREVISO - PER ACQUISTO N. 50 CARTE DI IDENTITA IN FORMATO CARTACEO.;27/10/2020;37;0;345;1;Spese correnti;3;Acquisto di beni e servizi;1;Acquisto di beni;2;Altri beni di consumo;1;Carta, cancelleria e stampati;27/10/2020
1153;1;0;1.500,00;1.500,00;PEDEMONTANA EMERGENZA ONLUS; ;IMPEGNO E LIQUIDAZIONE CONTRIBUTO A PEDEMONTANA EMERGENZA ONLUS DI PIEVE DEL GRAPPA (TV).;27/10/2020;575;0;346;1;Spese correnti;4;Trasferimenti correnti;4;Trasferimenti correnti a Istituzioni Sociali Private;1;Trasferimenti correnti a Istituzioni Sociali Private;1;Trasferimenti correnti a Istituzioni Sociali Private;27/10/2020
1154;1;0;1.490,01;1.490,01;CITTON GIANNANTONIO & C. SNC;ZBC2DC240E;SALDO Fatt.n. 0000000711  del 06/10/2020 ACQUISTO BENI PER MANUTENZIONE STRADE;02/11/2020;591;0;239;1;Spese correnti;3;Acquisto di beni e servizi;1;Acquisto di beni;2;Altri beni di consumo;3;Equipaggiamento;02/11/2020
1155;1;0;1.026,56;1.026,56;NOIGROUP Coop. Soc. a R.L.;ZDE2A28443;SALDO Fatt.n. 665  del 30/09/2020 APERTURA-CHIUSURA MUSEO - SETT. 2020;02/11/2020;303;0;490;1;Spese correnti;3;Acquisto di beni e servizi;2;Acquisto di servizi;99;Altri servizi;999;Altri servizi diversi n.a.c.;02/11/2020
1156;1;0;1.686,70;1.686,70;CASA DI RIPOSO 'AITA'; ;SALDO Fatt.n. 376/B  del 12/10/2020 RETTE PER ANZIANI - SETTEMBRE 2020;02/11/2020;560;0;55;1;Spese correnti;3;Acquisto di beni e servizi;2;Acquisto di servizi;15;Contratti di servizio pubblico;8;Contratti di servizio di assistenza sociale residenziale e semiresidenziale;02/11/2020
1157;1;0;2.950,36;2.950,36;VENDRASCO GIANMATTEO;ZC82E8137D;SALDO Fatt.n. 44  del 16/10/2020 INCARICO PER AGGIORNAMENTO CATASTALE IMMOBILI;02/11/2020;785;0;328;2;Spese in conto capitale;2;Investimenti fissi lordi e acquisto di terreni;1;Beni materiali;10;Beni immobili di valore culturale, storico ed artistico;8;Musei, teatri e biblioteche di valore culturale, storico ed artistico;02/11/2020
1158;1;0;1.440,00;1.440,00;NOIGROUP Coop. Soc. a R.L.;Z5F268727B;SALDO Fatt.n. 667  del 30/09/2020 GESTIONE BIBLIOTECA - SETT. 2020;02/11/2020;302;1;553;1;Spese correnti;3;Acquisto di beni e servizi;2;Acquisto di servizi;16;Servizi amministrativi;999;Altre spese per servizi amministrativi;02/11/2020
1159;1;0;200;200;SONDA COOPERATIVA SOCIALE ONLUS; ;SALDO Fatt.n. 303/PA/2020  del 30/09/2020 PRESTAZIONI SOCIALI - SETTEMBRE 2020;02/11/2020;576;0;84;1;Spese correnti;4;Trasferimenti correnti;2;Trasferimenti correnti a Famiglie;2;Interventi assistenziali;999;Altri assegni e sussidi assistenziali;02/11/2020
1160;1;0;786,9;786,9;SAVERI FABIO;Z722E6FB6D;SALDO Fatt.n. 213/2020  del 12/10/2020 ACQUISTO DI PERSONALE COMPUTER;02/11/2020;746;0;323;2;Spese in conto capitale;2;Investimenti fissi lordi e acquisto di terreni;1;Beni materiali;7;Hardware;2;Postazioni di lavoro;02/11/2020
1161;1;0;1.268,80;1.268,80;GALLINA STEVEN;Z5428FE44E;SALDO Fatt.n. 63  del 13/10/2020 INCARICO ESTERNO PER MIGLIORAMENTO SISMICO ED EFFICIENTAMENTO ENERGETICO SCUOLE;02/11/2020;779;0;344;2;Spese in conto capitale;2;Investimenti fissi lordi e acquisto di terreni;1;Beni materiali;9;Beni immobili;3;Fabbricati ad uso scolastico;02/11/2020
1162;1;0;2.040,00;2.040,00;BERNO MARTINA; ;SALDO Fatt.n. 36/FE  del 14/10/2020 ONORARIO PER PRESTAZIONI UFFICIO STAMPA;02/11/2020;23;0;604;1;Spese correnti;3;Acquisto di beni e servizi;2;Acquisto di servizi;11;Prestazioni professionali e specialistiche;999;Altre prestazioni professionali e specialistiche n.a.c.;02/11/2020
1163;1;0;310,84;310,84;CENTRO PER LA SALUTE DEL BAMBINO - CSB ONLUS;Z2E2EB5394;SALDO Fatt.n. FATTPA 59_20  del 20/10/2020 ACQUISTO LIBRI PER BIBLIOTECA COMUNALE;02/11/2020;781;0;334;2;Spese in conto capitale;2;Investimenti fissi lordi e acquisto di terreni;1;Beni materiali;99;Altri beni materiali;1;Materiale bibliografico;02/11/2020
1164;1;0;29.987,60;29.987,60;BAUMA IMPIANTI SPORTIVI S.R.L.;ZB32E233AC;SALDO Fatt.n. 64/2020  del 19/10/2020 MANUTENZIONE STRAORDINARIA PERCORSI SPORTIVI;02/11/2020;805;0;280;2;Spese in conto capitale;2;Investimenti fissi lordi e acquisto di terreni;1;Beni materiali;9;Beni immobili;16;Impianti sportivi;02/11/2020
1165;1;0;3.959,80;3.959,80;GIACOBBO S.R.L.;Z822E5F412;SALDO Fatt.n. 91  del 06/10/2020 MANUTENZIONE STRADE STERRATE;02/11/2020;1007;0;322;2;Spese in conto capitale;2;Investimenti fissi lordi e acquisto di terreni;1;Beni materiali;9;Beni immobili;12;Infrastrutture stradali;02/11/2020
1166;1;0;2.515,68;2.515,68;A.S. DI ANDREATTA GIUSEPPE & C. S.R.L.;Z162D6230A;SALDO Fatt.n. 678  del 30/09/2020 MANUTENZIONE SCUOLE - SETT. 2020;02/11/2020;601;0;191;1;Spese correnti;3;Acquisto di beni e servizi;2;Acquisto di servizi;15;Contratti di servizio pubblico;15;Contratti di servizio per l'illuminazione pubblica;02/11/2020
1167;1;0;146,4;146,4;SICURITALIA IVRI S.P.A.;Z3827208DE;ACCONTO Fatt.n. 9117012463  del 13/10/2020 SERVIZI DI ISPEZIONE;02/11/2020;235;0;92;1;Spese correnti;3;Acquisto di beni e servizi;2;Acquisto di servizi;5;Utenze e canoni;999;Utenze e canoni per altri servizi n.a.c.;02/11/2020
1168;1;0;376,58;376,58;SICURITALIA IVRI S.P.A.;Z3827208DE;ACCONTO Fatt.n. 9117012463  del 13/10/2020 SERVIZI DI ISPEZIONE;02/11/2020;252;0;170;1;Spese correnti;3;Acquisto di beni e servizi;2;Acquisto di servizi;5;Utenze e canoni;999;Utenze e canoni per altri servizi n.a.c.;02/11/2020
1169;1;0;22,36;22,36;SICURITALIA IVRI S.P.A.;Z3827208DE;ACCONTO Fatt.n. 9117012463  del 13/10/2020 SERVIZI DI ISPEZIONE;02/11/2020;252;0;91;1;Spese correnti;3;Acquisto di beni e servizi;2;Acquisto di servizi;5;Utenze e canoni;999;Utenze e canoni per altri servizi n.a.c.;02/11/2020
1170;1;0;21,96;21,96;SICURITALIA IVRI S.P.A.;Z3827208DE;SALDO Fatt.n. 9117012463  del 13/10/2020 SERVIZI DI ISPEZIONE;02/11/2020;561;2;90;1;Spese correnti;3;Acquisto di beni e servizi;2;Acquisto di servizi;5;Utenze e canoni;999;Utenze e canoni per altri servizi n.a.c.;02/11/2020
1171;1;0;-135,58;135,58;FERRONATO S.R.L.;Z7C26AD935;SALDO Fatt.n. A731  del 16/10/2020 NOTA DI CREDITO;02/11/2020;71;2;276;1;Spese correnti;3;Acquisto di beni e servizi;1;Acquisto di beni;2;Altri beni di consumo;999;Altri beni e materiali di consumo n.a.c.;02/11/2020
1171;2;0;135,58;135,58;FERRONATO S.R.L.;Z7C26AD935;SALDO Fatt.n. P5  del 16/10/2020 FORNITURA MATERIALE;02/11/2020;71;2;276;1;Spese correnti;3;Acquisto di beni e servizi;1;Acquisto di beni;2;Altri beni di consumo;999;Altri beni e materiali di consumo n.a.c.;02/11/2020
1171;3;0;135,58;135,58;FERRONATO S.R.L.;Z7C26AD935;SALDO Fatt.n. A657  del 30/09/2020 FATTURA ERRATA;02/11/2020;71;2;276;1;Spese correnti;3;Acquisto di beni e servizi;1;Acquisto di beni;2;Altri beni di consumo;999;Altri beni e materiali di consumo n.a.c.;02/11/2020
1172;1;0;8.478,75;8.478,75;COMUNICA SOCIETA' COOPERATIVA ONLUS;Z6A2D62321;SALDO Fatt.n. 2/62  del 20/10/2020 CENTRI ESTIVI 2020;02/11/2020;295;2;193;1;Spese correnti;3;Acquisto di beni e servizi;2;Acquisto di servizi;15;Contratti di servizio pubblico;999;Altre spese per contratti di servizio pubblico;02/11/2020
1175;1;0;1.823,95;1.823,95;TESORERIA PROVINCIALE DELLO STATO; ;VERSAMENTO I.V.A. A DEBITO COMMERCIALE RELATIVA AL TERZO TRIMESTRE 2020 - COD. IVA 616E.;03/11/2020;660;0;0;1;Spese correnti;10;Altre spese correnti;3;Versamenti IVA a debito;1;Versamenti IVA a debito per le gestioni commerciali;1;Versamenti IVA a debito per le gestioni commerciali;03/11/2020
1176;1;0;-6.877,71;6.855,43;ANDREATTA BERTILLA; ;SALDO Fatt.n. 3/00  del 19/10/2020 NOTA CREDITO PER ERRATA FATTURA N.2 DEL 19/10/2020;03/11/2020;239;0;305;1;Spese correnti;3;Acquisto di beni e servizi;1;Acquisto di beni;1;Giornali, riviste e pubblicazioni;2;Pubblicazioni;03/11/2020
1176;2;0;161,07;6.855,43;ANDREATTA BERTILLA; ;SALDO Fatt.n. 5/00  del 29/10/2020 FORNITURA LIBRI DI TESTO;03/11/2020;239;0;305;1;Spese correnti;3;Acquisto di beni e servizi;1;Acquisto di beni;1;Giornali, riviste e pubblicazioni;2;Pubblicazioni;03/11/2020
1176;3;0;6.694,36;6.855,43;ANDREATTA BERTILLA; ;SALDO Fatt.n. 4/00  del 19/10/2020 FORNITURA LIBRI DI TESTO;03/11/2020;239;0;305;1;Spese correnti;3;Acquisto di beni e servizi;1;Acquisto di beni;1;Giornali, riviste e pubblicazioni;2;Pubblicazioni;03/11/2020
1176;4;0;6.877,71;6.855,43;ANDREATTA BERTILLA; ;SALDO Fatt.n. 2/00  del 19/10/2020 CEDOLE LIBRARIE;03/11/2020;239;0;305;1;Spese correnti;3;Acquisto di beni e servizi;1;Acquisto di beni;1;Giornali, riviste e pubblicazioni;2;Pubblicazioni;03/11/2020
1177;1;0;31,3;31,3;L'IDEA DI TONIETTO MASSIMO; ;SALDO Fatt.n. 2/01  del 14/10/2020 FORNITURA LIBRI DI TESTO;03/11/2020;239;0;305;1;Spese correnti;3;Acquisto di beni e servizi;1;Acquisto di beni;1;Giornali, riviste e pubblicazioni;2;Pubblicazioni;03/11/2020
1178;1;0;874,46;874,46;LA BASSANESE LIBRERIE SRL; ;SALDO Fatt.n. 336-20  del 13/10/2020 CEDOLA LIBRARIA;03/11/2020;239;0;305;1;Spese correnti;3;Acquisto di beni e servizi;1;Acquisto di beni;1;Giornali, riviste e pubblicazioni;2;Pubblicazioni;03/11/2020
1179;1;0;203,63;203,63;MANCOR SPA - LIBRERIA PALAZZO ROBERTI; ;FORNITURA GRATUITA DEI LIBRI DI TESTO AGLI ALUNNI DELLE SCUOLE PRIMARIE RESIDENTI NEL COMUNE DI SAN ZENONE DEGLI EZZELINI (TV) -  ANNO SCOLASTICO 2020/2021.;03/11/2020;239;0;305;1;Spese correnti;3;Acquisto di beni e servizi;1;Acquisto di beni;1;Giornali, riviste e pubblicazioni;2;Pubblicazioni;03/11/2020
1180;1;0;1.666,98;1.666,98;LIBRERIA UBIK ANCORA NEWS SRL;ZAE2E7DE66;SALDO Fatt.n. 61-20  del 02/10/2020 FORNITURA LIBRI;03/11/2020;781;0;315;2;Spese in conto capitale;2;Investimenti fissi lordi e acquisto di terreni;1;Beni materiali;99;Altri beni materiali;1;Materiale bibliografico;03/11/2020
1181;1;0;1.665,00;1.665,00;MASSARO LIBRI DI LIBERALI G. ALBINO & C. S.A.S.;ZCE2E7DF2E;SALDO Fatt.n. 152-20  del 26/09/2020 FORNITURA LIBRI;03/11/2020;781;0;315;2;Spese in conto capitale;2;Investimenti fissi lordi e acquisto di terreni;1;Beni materiali;99;Altri beni materiali;1;Materiale bibliografico;03/11/2020
1182;1;0;1.666,98;1.666,98;TORRE DI LIBRI SRL;ZC22E7DEE3;SALDO Fatt.n. 19  del 30/09/2020 ACQUISTO DI LIBRI;03/11/2020;781;0;315;2;Spese in conto capitale;2;Investimenti fissi lordi e acquisto di terreni;1;Beni materiali;99;Altri beni materiali;1;Materiale bibliografico;03/11/2020
1183;1;0;121,83;253,02;KUWAIT PETROLEUM ITALIA S.P.A.;Z5B2CB3D93;SALDO Fatt.n. PJ03063024  del 30/09/2020 FORNITURA CARBURANTE AUTO PROT. CIVILE - SETTEMBRE 2020;03/11/2020;590;0;111;1;Spese correnti;3;Acquisto di beni e servizi;1;Acquisto di beni;2;Altri beni di consumo;2;Carburanti, combustibili e lubrificanti;03/11/2020
1183;2;0;131,19;253,02;KUWAIT PETROLEUM ITALIA S.P.A.;Z5B2CB3D93;SALDO Fatt.n. PJ03063025  del 30/09/2020 FORNITURA CARBURANTE AUTO OP.: SETT. 2020;03/11/2020;590;0;111;1;Spese correnti;3;Acquisto di beni e servizi;1;Acquisto di beni;2;Altri beni di consumo;2;Carburanti, combustibili e lubrificanti;03/11/2020
1184;1;0;54,99;54,99;KUWAIT PETROLEUM ITALIA S.P.A.;Z5B2CB3D93;SALDO Fatt.n. PJ03063027  del 30/09/2020 FORNITURA CARBURANTE AUTO VIGILI: SETT. 2020;03/11/2020;179;0;109;1;Spese correnti;3;Acquisto di beni e servizi;1;Acquisto di beni;2;Altri beni di consumo;2;Carburanti, combustibili e lubrificanti;03/11/2020
1185;1;0;20;355,94;COSTRUZIONI GENERALI GIRARDINI S.p.A.;Z212EE4BDC;ACCONTO Fatt.n. 0000131/E  del 30/09/2020 FORNITURA CONGLOMERATO;04/11/2020;591;0;359;1;Spese correnti;3;Acquisto di beni e servizi;1;Acquisto di beni;2;Altri beni di consumo;999;Altri beni e materiali di consumo n.a.c.;04/11/2020
1185;2;0;335,94;355,94;COSTRUZIONI GENERALI GIRARDINI S.p.A.;Z212EE4BDC;ACCONTO Fatt.n. 0000131/E  del 30/09/2020 FORNITURA CONGLOMERATO;04/11/2020;591;0;359;1;Spese correnti;3;Acquisto di beni e servizi;1;Acquisto di beni;2;Altri beni di consumo;999;Altri beni e materiali di consumo n.a.c.;04/11/2020
1186;1;0;56,73;56,73;COSTRUZIONI GENERALI GIRARDINI S.p.A.;Z212EE4BDC;SALDO Fatt.n. 0000131/E  del 30/09/2020 FORNITURA CONGLOMERATO;04/11/2020;531;0;360;1;Spese correnti;3;Acquisto di beni e servizi;1;Acquisto di beni;2;Altri beni di consumo;999;Altri beni e materiali di consumo n.a.c.;04/11/2020
1187;1;0;-8.800,00;8.800,00;MG BOY'S s.r.l.;ZE92DB6344;SALDO Fatt.n. 839  del 30/10/2020 STORNO TOTALE FATTURA N. 806 DEL 13/10/2020;04/11/2020;1007;0;236;2;Spese in conto capitale;2;Investimenti fissi lordi e acquisto di terreni;1;Beni materiali;9;Beni immobili;12;Infrastrutture stradali;04/11/2020
1187;2;0;8.800,00;8.800,00;MG BOY'S s.r.l.;ZE92DB6344;SALDO Fatt.n. 806  del 13/10/2020 SISTEMAZIONE TRATTO DI STRADA STERRATA;04/11/2020;1007;0;236;2;Spese in conto capitale;2;Investimenti fissi lordi e acquisto di terreni;1;Beni materiali;9;Beni immobili;12;Infrastrutture stradali;04/11/2020
1187;3;0;8.800,00;8.800,00;MG BOY'S s.r.l.;ZE92DB6344;SALDO Fatt.n. 840  del 30/10/2020 SISTEMAZIONE TRATTO DI STRADA STERRATA;04/11/2020;1007;0;236;2;Spese in conto capitale;2;Investimenti fissi lordi e acquisto di terreni;1;Beni materiali;9;Beni immobili;12;Infrastrutture stradali;04/11/2020
1189;1;0;99,01;99,01;KUWAIT PETROLEUM ITALIA S.P.A.;Z4E197F01F;ACCONTO Fatt.n. PJ03063026  del 30/09/2020 CARBURANTE AUTO UFF. COMUNALI;05/11/2020;47;0;108;1;Spese correnti;3;Acquisto di beni e servizi;1;Acquisto di beni;2;Altri beni di consumo;2;Carburanti, combustibili e lubrificanti;05/11/2020
1190;1;0;88,99;88,99;KUWAIT PETROLEUM ITALIA S.P.A.;Z4E197F01F;SALDO Fatt.n. PJ03063026  del 30/09/2020 CARBURANTE AUTO UFF. COMUNALI;05/11/2020;571;0;110;1;Spese correnti;3;Acquisto di beni e servizi;1;Acquisto di beni;2;Altri beni di consumo;2;Carburanti, combustibili e lubrificanti;05/11/2020
1191;1;0;168,81;168,81;TIM S.P.A.;6930022311;SALDO Fatt.n. 7X03725543  del 14/10/2020 TRAFFICO TELEFONICO 6 BIM 2020 - AGOSTO -SETT. 2020;05/11/2020;34;0;398;1;Spese correnti;3;Acquisto di beni e servizi;2;Acquisto di servizi;5;Utenze e canoni;999;Utenze e canoni per altri servizi n.a.c.;05/11/2020
1192;1;0;604,15;604,15;TIM S.P.A.;ZE429271DF;ACCONTO Fatt.n. 4220420800039866  del 14/10/2020 TRAFFICO TELEFONICO AGOSTO-SETT.  2020 6 BIM 2020;05/11/2020;235;0;394;1;Spese correnti;3;Acquisto di beni e servizi;2;Acquisto di servizi;5;Utenze e canoni;999;Utenze e canoni per altri servizi n.a.c.;05/11/2020
1193;1;0;0,72;328,18;TIM S.P.A.;Z7F2E68750;SALDO Fatt.n. 8E00678976  del 14/10/2020 TRAFFICO TELEFONICO: 6 BIM 2020, AGO-SETT. 2020;05/11/2020;235;0;307;1;Spese correnti;3;Acquisto di beni e servizi;2;Acquisto di servizi;5;Utenze e canoni;999;Utenze e canoni per altri servizi n.a.c.;05/11/2020
1193;2;0;0,91;328,18;TIM S.P.A.;Z7F2E68750;SALDO Fatt.n. 8E00679059  del 14/10/2020 TRAFFICO TELEFONICO: 6 BIM 2020, AGO-SETT. 2020;05/11/2020;235;0;307;1;Spese correnti;3;Acquisto di beni e servizi;2;Acquisto di servizi;5;Utenze e canoni;999;Utenze e canoni per altri servizi n.a.c.;05/11/2020
1193;3;0;1,06;328,18;TIM S.P.A.;Z7F2E68750;SALDO Fatt.n. 8E00682069  del 14/10/2020 TRAFFICO TELEFONICO: 6 BIM 2020, AGO-SETT. 2020;05/11/2020;235;0;307;1;Spese correnti;3;Acquisto di beni e servizi;2;Acquisto di servizi;5;Utenze e canoni;999;Utenze e canoni per altri servizi n.a.c.;05/11/2020
1193;4;0;325,49;328,18;TIM S.P.A.;Z7F2E68750;SALDO Fatt.n. 4220420800039866  del 14/10/2020 TRAFFICO TELEFONICO AGOSTO-SETT.  2020 6 BIM 2020;05/11/2020;235;0;307;1;Spese correnti;3;Acquisto di beni e servizi;2;Acquisto di servizi;5;Utenze e canoni;999;Utenze e canoni per altri servizi n.a.c.;05/11/2020
1195;1;0;73,85;73,85;CONTO SERVIZIO POLIZIA MUNICIPALE; ;SPESE PER BANCO POSTA SERVIZIO POLIZIA MUNICIPALE PERIODO: 01/06/2020 - 31/08/2020  - GIRO CONTABILE DA CAP. 45 SPESA A CAP. 755 ENTRATA (VEDI REV.  N. 1071).-;09/11/2020;45;0;343;1;Spese correnti;3;Acquisto di beni e servizi;2;Acquisto di servizi;16;Servizi amministrativi;2;Spese postali;09/11/2020
1196;1;0;79,29;79,29;CONTO SERVIZIO DI TESORERIA; ;SPESE PER BANCO POSTA SERVIZIO DI TESORERIA PERIODO: 01/6/2020 - 31/08/2020 GIRO CONTABILE DA CAP. 45 SPESA A CAP. 675 ENTRATA (VEDI REV. N. 1073).;09/11/2020;45;0;342;1;Spese correnti;3;Acquisto di beni e servizi;2;Acquisto di servizi;16;Servizi amministrativi;2;Spese postali;09/11/2020
1197;1;0;1.500,00;1.500,00;OMESSO NOMINATIVO NEL RISPETTO DELLA NORMATIVA SULLA PROTEZIONE DATI PERSONALI; ;CONTRIBUTO PER LE UTENZE DOMESTICHE AD UN NUCLEO IN GRAVE DISAGIO SOCIO-ECONOMICO.;12/11/2020;576;0;369;1;Spese correnti;4;Trasferimenti correnti;2;Trasferimenti correnti a Famiglie;2;Interventi assistenziali;999;Altri assegni e sussidi assistenziali;12/11/2020
1198;1;0;150;150;ASSOCIAZIONE CITTA' MURATE DEL VENETO; ;"QUOTA ASSOCIATIVA 2020 ALLASSOCIAZIONE ""CITTA MURATE DEL VENETO"".";13/11/2020;51;1;365;1;Spese correnti;3;Acquisto di beni e servizi;2;Acquisto di servizi;99;Altri servizi;3;Quote di associazioni;13/11/2020
1228;1;0;5.961,21;5.961,21;AMMINISTRATORI COMUNALI; ;STIPENDI MESE DI: NOVEMBRE 20;16/11/2020;2;0;1;1;Spese correnti;3;Acquisto di beni e servizi;2;Acquisto di servizi;1;Organi e incarichi istituzionali dell'amministrazione;1;Organi istituzionali dell'amministrazione - Indennità;16/11/2020
1231;1;0;68,84;1.397,39;PLT PUREGREEN;7134285639;SALDO Fatt.n. 20200040003728  del 09/10/2020 FORNITURA ENERGIA ELETTRICA SETT. 2020;18/11/2020;600;0;216;1;Spese correnti;3;Acquisto di beni e servizi;2;Acquisto di servizi;5;Utenze e canoni;4;Energia elettrica;18/11/2020
1231;2;0;105,8;1.397,39;PLT PUREGREEN;7134285639;SALDO Fatt.n. 20200040003717  del 09/10/2020 FORNITURA ENERGIA ELETTRICA - SETT. 2020;18/11/2020;600;0;216;1;Spese correnti;3;Acquisto di beni e servizi;2;Acquisto di servizi;5;Utenze e canoni;4;Energia elettrica;18/11/2020
1231;3;0;167,6;1.397,39;PLT PUREGREEN;7134285639;SALDO Fatt.n. 20200040003715  del 09/10/2020 FORNITURA ENERGIA ELETTRICA SETT. 2020;18/11/2020;600;0;216;1;Spese correnti;3;Acquisto di beni e servizi;2;Acquisto di servizi;5;Utenze e canoni;4;Energia elettrica;18/11/2020
1231;4;0;170,2;1.397,39;PLT PUREGREEN;7134285639;SALDO Fatt.n. 20200040003724  del 09/10/2020 FORNITURA ENERGIA ELETTRICA SETT. 2020;18/11/2020;600;0;216;1;Spese correnti;3;Acquisto di beni e servizi;2;Acquisto di servizi;5;Utenze e canoni;4;Energia elettrica;18/11/2020
1231;5;0;393,38;1.397,39;PLT PUREGREEN;7134285639;SALDO Fatt.n. 20200040003726  del 09/10/2020 FORNITURA ENERGIA ELETTRICA SETT. 2020;18/11/2020;600;0;216;1;Spese correnti;3;Acquisto di beni e servizi;2;Acquisto di servizi;5;Utenze e canoni;4;Energia elettrica;18/11/2020
1231;6;0;491,57;1.397,39;PLT PUREGREEN;7134285639;SALDO Fatt.n. 20200040003723  del 09/10/2020 FORNITURA ENERGIA ELETTRICA SETT. 2020;18/11/2020;600;0;216;1;Spese correnti;3;Acquisto di beni e servizi;2;Acquisto di servizi;5;Utenze e canoni;4;Energia elettrica;18/11/2020
1232;1;0;53,96;1.003,68;PLT PUREGREEN;7134285639;SALDO Fatt.n. 20200040003727  del 09/10/2020 FORNITURA ENERGIA ELETTRICA SETT. 2020;18/11/2020;600;0;216;1;Spese correnti;3;Acquisto di beni e servizi;2;Acquisto di servizi;5;Utenze e canoni;4;Energia elettrica;18/11/2020
1232;2;0;70,13;1.003,68;PLT PUREGREEN;7134285639;SALDO Fatt.n. 20200040003725  del 09/10/2020 FORNITURA ENERGIA ELETTRICA SETT. 2020;18/11/2020;600;0;216;1;Spese correnti;3;Acquisto di beni e servizi;2;Acquisto di servizi;5;Utenze e canoni;4;Energia elettrica;18/11/2020
1232;3;0;115,78;1.003,68;PLT PUREGREEN;7134285639;SALDO Fatt.n. 20200040003417  del 30/09/2020 FORNITURA ENERGIA ELETTRICA I.P. - SETTEMBRE 2020;18/11/2020;600;0;216;1;Spese correnti;3;Acquisto di beni e servizi;2;Acquisto di servizi;5;Utenze e canoni;4;Energia elettrica;18/11/2020
1232;4;0;197,49;1.003,68;PLT PUREGREEN;7134285639;SALDO Fatt.n. 20200040003716  del 09/10/2020 FORNITURA ENERGIA ELETTRICA SETT. 2020;18/11/2020;600;0;216;1;Spese correnti;3;Acquisto di beni e servizi;2;Acquisto di servizi;5;Utenze e canoni;4;Energia elettrica;18/11/2020
1232;5;0;274,76;1.003,68;PLT PUREGREEN;7134285639;SALDO Fatt.n. 20200040003945  del 21/10/2020 FORNITURA ENERGIA ELETTRICA SETT. 2020;18/11/2020;600;0;216;1;Spese correnti;3;Acquisto di beni e servizi;2;Acquisto di servizi;5;Utenze e canoni;4;Energia elettrica;18/11/2020
1232;6;0;291,56;1.003,68;PLT PUREGREEN;7134285639;SALDO Fatt.n. 20200040003719  del 09/10/2020 FORNITURA ENERGIA ELETTRICA SETT. 2020;18/11/2020;600;0;216;1;Spese correnti;3;Acquisto di beni e servizi;2;Acquisto di servizi;5;Utenze e canoni;4;Energia elettrica;18/11/2020
1233;1;0;73,12;1.178,01;PLT PUREGREEN;7134285639;SALDO Fatt.n. 20200040003721  del 09/10/2020 FORNITURA ENERGIA ELETTRICA SETTEMBRE 2020;18/11/2020;561;2;215;1;Spese correnti;3;Acquisto di beni e servizi;2;Acquisto di servizi;5;Utenze e canoni;4;Energia elettrica;18/11/2020
1233;2;0;1.104,89;1.178,01;PLT PUREGREEN;7134285639;SALDO Fatt.n. 20200040003729  del 09/10/2020 FORNITURA ENERGIA ELETTRICA CENTRO POLIV.: SETT. 2020;18/11/2020;561;2;215;1;Spese correnti;3;Acquisto di beni e servizi;2;Acquisto di servizi;5;Utenze e canoni;4;Energia elettrica;18/11/2020
1234;1;0;35,61;35,61;PLT PUREGREEN;7134285639;SALDO Fatt.n. 20200040003722  del 09/10/2020 FORNITURA ENERGIA ELETTRICA CIMITERO: LUGLIO-SETT. 2020;18/11/2020;413;0;211;1;Spese correnti;3;Acquisto di beni e servizi;2;Acquisto di servizi;5;Utenze e canoni;4;Energia elettrica;18/11/2020
1235;1;0;3.025,48;3.025,48;BIM PIAVE NUOVE ENERGIE S.R.L.; ;SALDO Fatt.n. 9001899  del 19/10/2020 Anno termico 2019/2020- acqua calda 01/05/2020-30/06/2020 - Palestra;18/11/2020;530;0;120;1;Spese correnti;3;Acquisto di beni e servizi;2;Acquisto di servizi;5;Utenze e canoni;6;Gas;18/11/2020
1236;1;0;650,35;650,35;BIM PIAVE NUOVE ENERGIE S.R.L.; ;SALDO Fatt.n. 9001893  del 19/10/2020 Anno termico 2019/2020 - acqua calda 01/05/2020-30/06/2020 - Villa Rubelli;18/11/2020;310;0;117;1;Spese correnti;3;Acquisto di beni e servizi;2;Acquisto di servizi;5;Utenze e canoni;6;Gas;18/11/2020
1237;1;0;414,74;3.922,96;BIM PIAVE NUOVE ENERGIE S.R.L.; ;SALDO Fatt.n. 9001892  del 19/10/2020 Anno termico 2019/2020-acqua calda 01/05/2020-30/06/2020 - Ex Scuola Primaria Sopracastello;18/11/2020;561;2;118;1;Spese correnti;3;Acquisto di beni e servizi;2;Acquisto di servizi;5;Utenze e canoni;6;Gas;18/11/2020
1237;2;0;1.215,84;3.922,96;BIM PIAVE NUOVE ENERGIE S.R.L.; ;"SALDO Fatt.n. 9001894  del 19/10/2020 Anno termico 2019/2020 - acqua calda 01/05/2020-30/06/2020 - Polivalente ""La Roggia""";18/11/2020;561;2;118;1;Spese correnti;3;Acquisto di beni e servizi;2;Acquisto di servizi;5;Utenze e canoni;6;Gas;18/11/2020
1237;3;0;2.292,38;3.922,96;BIM PIAVE NUOVE ENERGIE S.R.L.; ;"SALDO Fatt.n. 9001895  del 19/10/2020 Anno termico 2019/2020 - Polivalente ""La Roggia""";18/11/2020;561;2;118;1;Spese correnti;3;Acquisto di beni e servizi;2;Acquisto di servizi;5;Utenze e canoni;6;Gas;18/11/2020
1238;1;0;58;58;KUWAIT PETROLEUM ITALIA S.P.A.;Z4E197F01F;SALDO Fatt.n. PJ03181721  del 31/10/2020 CARBURANTE AUTO VIGILI - OTTOBRE 2020;18/11/2020;179;0;109;1;Spese correnti;3;Acquisto di beni e servizi;1;Acquisto di beni;2;Altri beni di consumo;2;Carburanti, combustibili e lubrificanti;18/11/2020
1239;1;0;74,54;168,96;KUWAIT PETROLEUM ITALIA S.P.A.;Z4E197F01F;SALDO Fatt.n. PJ03181719  del 31/10/2020 CARBURANTE AUTO OPERAI - OTTOBRE 2020;18/11/2020;590;0;111;1;Spese correnti;3;Acquisto di beni e servizi;1;Acquisto di beni;2;Altri beni di consumo;2;Carburanti, combustibili e lubrificanti;18/11/2020
1239;2;0;94,42;168,96;KUWAIT PETROLEUM ITALIA S.P.A.;Z4E197F01F;SALDO Fatt.n. PJ03181718  del 31/10/2020 CARBURANTE AUTO PROT. CIVILE - OTTOBRE 2020;18/11/2020;590;0;111;1;Spese correnti;3;Acquisto di beni e servizi;1;Acquisto di beni;2;Altri beni di consumo;2;Carburanti, combustibili e lubrificanti;18/11/2020
1240;1;0;113,25;113,25;KUWAIT PETROLEUM ITALIA S.P.A.;Z4E197F01F;ACCONTO Fatt.n. PJ03181720  del 31/10/2020 CARBURANTE AUTO UFFICI AMM.VI E SOCIALE;18/11/2020;571;0;110;1;Spese correnti;3;Acquisto di beni e servizi;1;Acquisto di beni;2;Altri beni di consumo;2;Carburanti, combustibili e lubrificanti;18/11/2020
1241;1;0;38;38;KUWAIT PETROLEUM ITALIA S.P.A.;Z4E197F01F;SALDO Fatt.n. PJ03181720  del 31/10/2020 CARBURANTE AUTO UFFICI AMM.VI E SOCIALE;18/11/2020;47;0;108;1;Spese correnti;3;Acquisto di beni e servizi;1;Acquisto di beni;2;Altri beni di consumo;2;Carburanti, combustibili e lubrificanti;18/11/2020
1242;1;0;13,55;13,55;ASCOTRADE S.P.A.;Z342D086E5;SALDO Fatt.n. 1336172  del 21/10/2020 CONSUMI GAS 16/06 AL 15/10;18/11/2020;71;0;171;1;Spese correnti;3;Acquisto di beni e servizi;2;Acquisto di servizi;5;Utenze e canoni;6;Gas;18/11/2020
1243;1;0;513,48;513,48;MANCOR SPA - LIBRERIA PALAZZO ROBERTI;ZDB2D9A939;SALDO Fatt.n. 40106  del 17/11/2020 LIBRI PER BIBLIOTECA;18/11/2020;304;0;219;1;Spese correnti;3;Acquisto di beni e servizi;1;Acquisto di beni;1;Giornali, riviste e pubblicazioni;2;Pubblicazioni;18/11/2020
1244;1;0;1.024,91;1.024,91;VINANTE MARGHERITA;Z7C2BFC524;SALDO Fatt.n. 1/PA  del 30/10/2020 FORNITURA LIBRI;18/11/2020;239;0;305;1;Spese correnti;3;Acquisto di beni e servizi;1;Acquisto di beni;1;Giornali, riviste e pubblicazioni;2;Pubblicazioni;18/11/2020
1245;1;0;62,16;62,16;LA FONTESE DI GIANNI BROLESE & C. S.A.S.;Z782ED78FA;SALDO Fatt.n. 152/F  del 31/10/2020 FORNITURA CANCELLERIA;18/11/2020;21;0;344;1;Spese correnti;3;Acquisto di beni e servizi;1;Acquisto di beni;2;Altri beni di consumo;1;Carta, cancelleria e stampati;18/11/2020
1246;1;0;787,93;787,93;LA FONTESE DI GIANNI BROLESE & C. S.A.S.; ;SALDO Fatt.n. 638/V  del 29/10/2020 FORNITURA LIBRI;18/11/2020;239;0;305;1;Spese correnti;3;Acquisto di beni e servizi;1;Acquisto di beni;1;Giornali, riviste e pubblicazioni;2;Pubblicazioni;18/11/2020
1247;1;0;28,06;28,06;SICURITALIA IVRI S.P.A.;Z3827208DE;SALDO Fatt.n. 9117013325  del 31/10/2020 SERVIZI ISPETTIVI;18/11/2020;235;0;92;1;Spese correnti;3;Acquisto di beni e servizi;2;Acquisto di servizi;5;Utenze e canoni;999;Utenze e canoni per altri servizi n.a.c.;18/11/2020
1248;1;0;17,12;17,12;LA IDROFERRAMENTA SRL;Z3D2D0846B;SALDO Fatt.n. 87/PA  del 31/10/2020 FORNITURA MATERIALE;18/11/2020;591;0;161;1;Spese correnti;3;Acquisto di beni e servizi;1;Acquisto di beni;2;Altri beni di consumo;999;Altri beni e materiali di consumo n.a.c.;18/11/2020
1249;1;0;70,15;70,15;IL GONFALONE DI FAGGIONATO ROBERTO;Z8B2F0334A;ACCONTO Fatt.n. FPA 745/20  del 03/11/2020 KIT COSTITUZIONE E BANDIERA ITALIANA;18/11/2020;331;0;373;1;Spese correnti;3;Acquisto di beni e servizi;1;Acquisto di beni;2;Altri beni di consumo;999;Altri beni e materiali di consumo n.a.c.;18/11/2020
1250;1;0;783,85;783,85;IL GONFALONE DI FAGGIONATO ROBERTO;Z8B2F0334A;SALDO Fatt.n. FPA 745/20  del 03/11/2020 KIT COSTITUZIONE E BANDIERA ITALIANA;18/11/2020;40;2;372;1;Spese correnti;3;Acquisto di beni e servizi;1;Acquisto di beni;2;Altri beni di consumo;999;Altri beni e materiali di consumo n.a.c.;18/11/2020
1251;1;0;1.653,10;1.653,10;INFOTEAM SRL;ZCE2EB44DB;SALDO Fatt.n. 00000002791  del 31/10/2020 INTERVENTO TECNICO;19/11/2020;39;0;355;1;Spese correnti;3;Acquisto di beni e servizi;2;Acquisto di servizi;19;Servizi informatici e di telecomunicazioni;10;Servizi di consulenza e prestazioni professionali ICT;19/11/2020
1252;1;0;6.487,60;6.487,60;CASA DI RIPOSO 'AITA'; ;SALDO Fatt.n. 556/C  del 31/10/2020 FORNITURA PASTI MENSA SCUOLE - OTTOBRE 2020;19/11/2020;274;1;54;1;Spese correnti;3;Acquisto di beni e servizi;2;Acquisto di servizi;15;Contratti di servizio pubblico;6;Contratti di servizio per le mense scolastiche;19/11/2020
1253;1;0;211,88;211,88;BELLNET INTERNATIONAL S.R.L.;Z752BFBD5F;SALDO Fatt.n. FATTPA 2455_20  del 31/10/2020 TRAFFICO TELEFONICO;19/11/2020;34;0;58;1;Spese correnti;3;Acquisto di beni e servizi;2;Acquisto di servizi;5;Utenze e canoni;1;Telefonia fissa;19/11/2020
1254;1;0;49,5;49,5;SPRINT OFFICE S.r.l.; ;SALDO Fatt.n. H65/56  del 05/11/2020 FORNITURA LIBRI;19/11/2020;239;0;305;1;Spese correnti;3;Acquisto di beni e servizi;1;Acquisto di beni;1;Giornali, riviste e pubblicazioni;2;Pubblicazioni;19/11/2020
1255;1;0;200;200;SONDA COOPERATIVA SOCIALE ONLUS; ;SALDO Fatt.n. 334/PA/2020  del 31/10/2020 PRESTAZIONI SOCIALI - OTTOBRE 2020;19/11/2020;576;0;84;1;Spese correnti;4;Trasferimenti correnti;2;Trasferimenti correnti a Famiglie;2;Interventi assistenziali;999;Altri assegni e sussidi assistenziali;19/11/2020
1256;1;0;1.041,60;1.041,60;KIRIKU' SOCIETA' COOPERATIVA SOCIALE ONLUS;ZFA2BFBEE7;SALDO Fatt.n. 977  del 30/10/2020 PRESTAZIONI SOCIALI  - OTTOBRE 2020;19/11/2020;559;0;56;1;Spese correnti;3;Acquisto di beni e servizi;2;Acquisto di servizi;99;Altri servizi;999;Altri servizi diversi n.a.c.;19/11/2020
1257;1;0;1.454,29;1.454,29;NOIGROUP Coop. Soc. a R.L.;ZDE2A28443;SALDO Fatt.n. 771  del 31/10/2020 SERVIZIO MUSEO - OTTOBRE 2020;19/11/2020;303;0;490;1;Spese correnti;3;Acquisto di beni e servizi;2;Acquisto di servizi;99;Altri servizi;999;Altri servizi diversi n.a.c.;19/11/2020
1258;1;0;1.440,00;1.440,00;NOIGROUP Coop. Soc. a R.L.;Z5F268727B;SALDO Fatt.n. 770  del 31/10/2020 GESTIONE BIBLIOTECA - OTTOBRE 2020;19/11/2020;302;1;553;1;Spese correnti;3;Acquisto di beni e servizi;2;Acquisto di servizi;16;Servizi amministrativi;999;Altre spese per servizi amministrativi;19/11/2020
1259;1;0;1.037,00;1.037,00;TONIOLO MOBILI SNC di Toniolo Mauro & C.;Z022EB9C0A;SALDO Fatt.n. 58  del 28/10/2020 MANUTENZIONE PARAPETTI SCUOLE;19/11/2020;775;0;336;2;Spese in conto capitale;2;Investimenti fissi lordi e acquisto di terreni;1;Beni materiali;9;Beni immobili;3;Fabbricati ad uso scolastico;19/11/2020
1260;1;0;3.710,51;3.710,51;A.S. DI ANDREATTA GIUSEPPE & C. S.R.L.;Z162D6230A;SALDO Fatt.n. 770  del 31/10/2020 MANUTENZIONE PUBBLICA ILLUMINAZIONE;19/11/2020;601;0;191;1;Spese correnti;3;Acquisto di beni e servizi;2;Acquisto di servizi;15;Contratti di servizio pubblico;15;Contratti di servizio per l'illuminazione pubblica;19/11/2020
1261;1;0;1.699,20;1.699,20;CASA DI RIPOSO 'AITA'; ;SALDO Fatt.n. 421/B  del 10/11/2020 PRESTAZIONI SOCIALI L.V. - OTTOBRE 2020;19/11/2020;560;0;55;1;Spese correnti;3;Acquisto di beni e servizi;2;Acquisto di servizi;15;Contratti di servizio pubblico;8;Contratti di servizio di assistenza sociale residenziale e semiresidenziale;19/11/2020
1262;1;0;1.216,95;1.216,95;UNA CASA PER L'UOMO - SOCIETA' COOPERATIVA SOCIALE;Z092CFD987;SALDO Fatt.n. FE/0000322  del 31/10/2020 PRESTAZIONI SOCIALI - LUGL-OTT 2020;19/11/2020;559;0;155;1;Spese correnti;3;Acquisto di beni e servizi;2;Acquisto di servizi;99;Altri servizi;999;Altri servizi diversi n.a.c.;19/11/2020
1263;1;0;102,48;102,48;RED BOX SISTEMI S.R.L.;ZA82E87D94;SALDO Fatt.n. 439  del 31/10/2020 HARDAWARE;20/11/2020;746;0;325;2;Spese in conto capitale;2;Investimenti fissi lordi e acquisto di terreni;1;Beni materiali;7;Hardware;3;Periferiche;20/11/2020
1264;1;0;290,36;290,36;RED BOX SISTEMI S.R.L.;ZEB2EE5439;SALDO Fatt.n. 442  del 31/10/2020 HARDWARE;20/11/2020;746;0;349;2;Spese in conto capitale;2;Investimenti fissi lordi e acquisto di terreni;1;Beni materiali;7;Hardware;999;Hardware n.a.c.;20/11/2020
1265;1;0;22,27;22,27;DE ROSS FEDERICA;Z7C2BFC524;SALDO Fatt.n. 2  del 22/10/2020 FORNITURA LIBRI;20/11/2020;239;0;305;1;Spese correnti;3;Acquisto di beni e servizi;1;Acquisto di beni;1;Giornali, riviste e pubblicazioni;2;Pubblicazioni;20/11/2020
1266;1;0;190,31;190,31;MILANI SUSI; ;SALDO Fatt.n. 16  del 30/10/2020 FORNITURA LIBRI;20/11/2020;239;0;305;1;Spese correnti;3;Acquisto di beni e servizi;1;Acquisto di beni;1;Giornali, riviste e pubblicazioni;2;Pubblicazioni;20/11/2020
1267;1;0;2.074,00;2.074,00;VIA VAI PICCOLA COOPERATIVA SOCIALE a.r.l.;Z542E44408;SALDO Fatt.n. 354  del 31/10/2020 COMPENSO PER TRASLOCO BIBLIOTECA COMUNALE;20/11/2020;43;0;314;1;Spese correnti;3;Acquisto di beni e servizi;2;Acquisto di servizi;13;Servizi ausiliari per il funzionamento dell'ente;3;Trasporti, traslochi e facchinaggio;20/11/2020
1268;1;0;2.602,00;2.602,00;FAVERO MICHELANGELO;Z8A2DB040C;SALDO Fatt.n. FPA 8/20  del 12/11/2020 PRATICA ANTINCENDIO MUSEO MULTIMEDIALE;20/11/2020;64;1;223;1;Spese correnti;3;Acquisto di beni e servizi;2;Acquisto di servizi;11;Prestazioni professionali e specialistiche;999;Altre prestazioni professionali e specialistiche n.a.c.;20/11/2020
1269;1;0;331,01;331,01;ALFA ANTINCENDIO S.R.L.;Z972F06982;SALDO Fatt.n. 151  del 16/11/2020 INCARICO POSTAZIONI IDRANTI ANTINCENDIO;20/11/2020;252;1;358;1;Spese correnti;3;Acquisto di beni e servizi;2;Acquisto di servizi;9;Manutenzione ordinaria e riparazioni;8;Manutenzione ordinaria e riparazioni di beni immobili;20/11/2020
1270;1;0;1.007,60;1.007,60;INFOTEAM SRL;Z4B2E8D449;SALDO Fatt.n. 00000002697  del 30/10/2020 COLLEGAMENTI IN VILLA RUBELLI;20/11/2020;34;5;326;1;Spese correnti;3;Acquisto di beni e servizi;2;Acquisto di servizi;19;Servizi informatici e di telecomunicazioni;9;Servizi per le postazioni di lavoro e relativa manutenzione;20/11/2020
1271;1;0;4.076,41;4.076,41;CARTOYS DI ZARDO MICHELA;Z7C2BFC524;SALDO Fatt.n. 29/PA  del 30/10/2020 FORNITURA LIBRI;20/11/2020;239;0;305;1;Spese correnti;3;Acquisto di beni e servizi;1;Acquisto di beni;1;Giornali, riviste e pubblicazioni;2;Pubblicazioni;20/11/2020
1272;1;0;7.076,00;7.076,00;IDEA GIARDINO SNC;Z192CEDA04;SALDO Fatt.n. 56  del 26/10/2020 MANUTENZIONE DEL VERDE PUBBLICO;20/11/2020;512;0;229;1;Spese correnti;3;Acquisto di beni e servizi;2;Acquisto di servizi;99;Altri servizi;9;Acquisto di sevizi per verde e arredo urbano;20/11/2020
1273;1;0;13.200,00;13.200,00;EDIL MUNAROLO DI MUNAROLO IVAN & C. S.N.C.;Z982D5C2B2;SALDO Fatt.n. 1/PA  del 05/11/2020 MANUTENZIONE STRAORDINARIA MANTO STRADALE;20/11/2020;1007;0;242;2;Spese in conto capitale;2;Investimenti fissi lordi e acquisto di terreni;1;Beni materiali;9;Beni immobili;12;Infrastrutture stradali;20/11/2020
1274;1;0;12.586,72;26.141,44;Mobilita' di Marca S.P.A.;7976331491;SALDO Fatt.n. 000435  del 10/11/2020 TRASPORTO SCOLASTICO OTTOBRE 2020;23/11/2020;275;1;376;1;Spese correnti;3;Acquisto di beni e servizi;2;Acquisto di servizi;15;Contratti di servizio pubblico;2;Contratti di servizio di trasporto scolastico;23/11/2020
1274;2;0;13.554,72;26.141,44;Mobilita' di Marca S.P.A.;7976331491;SALDO Fatt.n. 000434  del 10/11/2020 TRASPORTO SCOLASTICO - SETTEMBRE 2020;23/11/2020;275;1;376;1;Spese correnti;3;Acquisto di beni e servizi;2;Acquisto di servizi;15;Contratti di servizio pubblico;2;Contratti di servizio di trasporto scolastico;23/11/2020
1275;1;0;2.728,00;2.728,00;Mobilita' di Marca S.P.A.;Z4C29A7A20;SALDO Fatt.n. 000455  del 20/11/2020 TRASPORTO BUS NAVETTA: GENNAIO-FEBBRAIO 2020;23/11/2020;275;1;434;1;Spese correnti;3;Acquisto di beni e servizi;2;Acquisto di servizi;15;Contratti di servizio pubblico;2;Contratti di servizio di trasporto scolastico;23/11/2020
1276;1;0;3.646,50;3.646,50;CASA DI RIPOSO 'AITA'; ;SALDO Fatt.n. 429/B  del 13/11/2020 SERVIZIO DI A.D. : SETTEMBRE 2020;23/11/2020;562;1;240;1;Spese correnti;3;Acquisto di beni e servizi;2;Acquisto di servizi;15;Contratti di servizio pubblico;9;Contratti di servizio di assistenza sociale domiciliare;23/11/2020
1277;1;0;2.537,60;2.537,60;STUDIO LEGALE AVVOCATI BORELLA SARTORATO E ASSOCIATI;ZF724694F7;ACCONTO Fatt.n. PA16/2020  del 09/11/2020 Contenzioso avanti il Tribuanle di Roma-Fall. La Fenice;23/11/2020;50;0;335;1;Spese correnti;3;Acquisto di beni e servizi;2;Acquisto di servizi;11;Prestazioni professionali e specialistiche;6;Patrocinio legale;23/11/2020
1278;1;0;16.167,17;16.167,17;STUDIO LEGALE AVVOCATI BORELLA SARTORATO E ASSOCIATI;ZF724694F7;SALDO Fatt.n. PA16/2020  del 09/11/2020 Contenzioso avanti il Tribuanle di Roma-Fall. La Fenice;23/11/2020;50;0;341;1;Spese correnti;3;Acquisto di beni e servizi;2;Acquisto di servizi;11;Prestazioni professionali e specialistiche;6;Patrocinio legale;23/11/2020
1279;1;0;4.466,66;4.466,66;ISTITUTO COMPRENSIVO STATALE; ;IMPEGNO E LIQUIDAZIONE CONTRIBUTO ALL ISTITUTO COMPRENSIVO STATALE DI SAN ZENONE DEGLI EZZELINI PER LE FUNZIONI MISTE DEL PERSONALE ATA - ANNO SCOLASTICO 2019/2020.;24/11/2020;254;1;375;1;Spese correnti;4;Trasferimenti correnti;1;Trasferimenti correnti a Amministrazioni Pubbliche;4;Trasferimenti correnti a organismi interni e/o unità locali della amministrazione;1;Trasferimenti correnti a organismi interni e/o unità locali della amministrazione;24/11/2020
1280;1;0;831,8;831,8;GRUPPO ALPINI DI LIEDOLO; ;LIQUIDAZIONE SPESA PER ORGANIZZAZIONE CERIMONIA DI COMMEMORAZIONE CADUTI DI TUTTE LE GUERRE 2020.;26/11/2020;334;0;377;1;Spese correnti;4;Trasferimenti correnti;1;Trasferimenti correnti a Amministrazioni Pubbliche;4;Trasferimenti correnti a organismi interni e/o unità locali della amministrazione;1;Trasferimenti correnti a organismi interni e/o unità locali della amministrazione;26/11/2020
1284;1;0;76,75;986,39;PLT PUREGREEN;7134285639;SALDO Fatt.n. 20200040004332  del 13/11/2020 FORNITURA ENERGIA ELETTRICA: OTTOBRE 2020;03/12/2020;600;0;216;1;Spese correnti;3;Acquisto di beni e servizi;2;Acquisto di servizi;5;Utenze e canoni;4;Energia elettrica;03/12/2020
1284;2;0;105,34;986,39;PLT PUREGREEN;7134285639;SALDO Fatt.n. 20200040004329  del 13/11/2020 FORNITURA ENERGIA ELETTRICA: OTTOBRE 2020;03/12/2020;600;0;216;1;Spese correnti;3;Acquisto di beni e servizi;2;Acquisto di servizi;5;Utenze e canoni;4;Energia elettrica;03/12/2020
1284;3;0;210,86;986,39;PLT PUREGREEN;7134285639;SALDO Fatt.n. 20200040004335  del 13/11/2020 FORNITURA ENERGIA ELETTRICA: OTTOBRE 2020;03/12/2020;600;0;216;1;Spese correnti;3;Acquisto di beni e servizi;2;Acquisto di servizi;5;Utenze e canoni;4;Energia elettrica;03/12/2020
1284;4;0;593,44;986,39;PLT PUREGREEN;7134285639;SALDO Fatt.n. 20200040004323  del 13/11/2020 FORNITURA ENERGIA ELETTRICA: OTTOBRE 2020;03/12/2020;600;0;216;1;Spese correnti;3;Acquisto di beni e servizi;2;Acquisto di servizi;5;Utenze e canoni;4;Energia elettrica;03/12/2020
1285;1;0;-119,75;280,72;PLT PUREGREEN;7134285639;SALDO Fatt.n. 20200040004336  del 13/11/2020 FORNITURA ENERGIA ELETTRICA: OTTOBRE 2020;03/12/2020;600;0;216;1;Spese correnti;3;Acquisto di beni e servizi;2;Acquisto di servizi;5;Utenze e canoni;4;Energia elettrica;03/12/2020
1285;2;0;54,69;280,72;PLT PUREGREEN;7134285639;SALDO Fatt.n. 20200040004334  del 13/11/2020 FORNITURA ENERGIA ELETTRICA: OTTOBRE 2020;03/12/2020;600;0;216;1;Spese correnti;3;Acquisto di beni e servizi;2;Acquisto di servizi;5;Utenze e canoni;4;Energia elettrica;03/12/2020
1285;3;0;105,52;280,72;PLT PUREGREEN;7134285639;SALDO Fatt.n. 20200040004324  del 13/11/2020 FORNITURA ENERGIA ELETTRICA: OTOBRE 2020;03/12/2020;600;0;216;1;Spese correnti;3;Acquisto di beni e servizi;2;Acquisto di servizi;5;Utenze e canoni;4;Energia elettrica;03/12/2020
1285;4;0;240,26;280,72;PLT PUREGREEN;7134285639;SALDO Fatt.n. 20200040004326  del 13/11/2020 FORNITURA ENERGIA ELETTRICA: OTTOBRE 2020;03/12/2020;600;0;216;1;Spese correnti;3;Acquisto di beni e servizi;2;Acquisto di servizi;5;Utenze e canoni;4;Energia elettrica;03/12/2020
1286;1;0;92,93;2.295,85;PLT PUREGREEN;7134285639;SALDO Fatt.n. 20200040004328  del 13/11/2020 FORNITURA ENERGIA ELETTRICA: OTTOBRE 2020;03/12/2020;600;0;216;1;Spese correnti;3;Acquisto di beni e servizi;2;Acquisto di servizi;5;Utenze e canoni;4;Energia elettrica;03/12/2020
1286;2;0;94,73;2.295,85;PLT PUREGREEN;7134285639;SALDO Fatt.n. 20200040004325  del 13/11/2020 FORNITURA ENERGIA ELETTRICA: OTTOBRE 2020;03/12/2020;600;0;216;1;Spese correnti;3;Acquisto di beni e servizi;2;Acquisto di servizi;5;Utenze e canoni;4;Energia elettrica;03/12/2020
1286;3;0;251,75;2.295,85;PLT PUREGREEN;7134285639;SALDO Fatt.n. 20200040004322  del 13/11/2020 FORNITURA ENERGIA ELETTRICA: OTTOBRE 2020;03/12/2020;600;0;216;1;Spese correnti;3;Acquisto di beni e servizi;2;Acquisto di servizi;5;Utenze e canoni;4;Energia elettrica;03/12/2020
1286;4;0;270,86;2.295,85;PLT PUREGREEN;7134285639;SALDO Fatt.n. 20200040004331  del 13/11/2020 FORNITURA ENERGIA ELETTRICA: OTTOBRE 2020;03/12/2020;600;0;216;1;Spese correnti;3;Acquisto di beni e servizi;2;Acquisto di servizi;5;Utenze e canoni;4;Energia elettrica;03/12/2020
1286;5;0;476,3;2.295,85;PLT PUREGREEN;7134285639;SALDO Fatt.n. 20200040004330  del 13/11/2020 FORNITURA ENERGIA ELETTRICA: OTTOBRE 2020;03/12/2020;600;0;216;1;Spese correnti;3;Acquisto di beni e servizi;2;Acquisto di servizi;5;Utenze e canoni;4;Energia elettrica;03/12/2020
1286;6;0;1.109,28;2.295,85;PLT PUREGREEN;7134285639;SALDO Fatt.n. 20200040004333  del 13/11/2020 FORNITURA ENERGIA ELETTRICA: OTTOBRE 2020;03/12/2020;600;0;216;1;Spese correnti;3;Acquisto di beni e servizi;2;Acquisto di servizi;5;Utenze e canoni;4;Energia elettrica;03/12/2020
1287;1;0;569,09;1.467,40;SOCIETA' CONTARINA S.P.A.;Z132BA4E25;SALDO Fatt.n. 0001538/VET  del 26/10/2020 TARIFFA GESTIONE RIFIUTI URBANI - 2 ACCONTO;03/12/2020;463;0;115;1;Spese correnti;3;Acquisto di beni e servizi;2;Acquisto di servizi;15;Contratti di servizio pubblico;4;Contratti di servizio per la raccolta rifiuti;03/12/2020
1287;2;0;898,31;1.467,40;SOCIETA' CONTARINA S.P.A.;Z132BA4E25;SALDO Fatt.n. 0001535/VET  del 26/10/2020 TARIFFA GESTIONE RIFIUTI URBANI - 2 ACCONTO;03/12/2020;463;0;115;1;Spese correnti;3;Acquisto di beni e servizi;2;Acquisto di servizi;15;Contratti di servizio pubblico;4;Contratti di servizio per la raccolta rifiuti;03/12/2020
1288;1;0;1.781,82;1.781,82;UNICOOPER SERVIZI S.C.R.L.;ZDB2BDF192;SALDO Fatt.n. 1997  del 16/11/2020 SERVIZIO DI PULIZIA ED. COMUNALI - OTTOBRE 2020;03/12/2020;34;2;45;1;Spese correnti;3;Acquisto di beni e servizi;2;Acquisto di servizi;13;Servizi ausiliari per il funzionamento dell'ente;2;Servizi di pulizia e lavanderia;03/12/2020
1289;1;0;1.205,36;1.205,36;UNICOOPER SERVIZI S.C.R.L.;Z1A2E584B3;SALDO Fatt.n. 2007  del 19/11/2020 SANIFICAZIONE-DISINFEZIONE UFF. X SEGGI ELETTORALI 20-21 SETT. 2020;03/12/2020;34;2;304;1;Spese correnti;3;Acquisto di beni e servizi;2;Acquisto di servizi;13;Servizi ausiliari per il funzionamento dell'ente;2;Servizi di pulizia e lavanderia;03/12/2020
1290;1;0;245,55;3.653,40;POSTE ITALIANE SPA - PROVENTI POLO LOGISTICO;Z0B2DA2D69;SALDO Fatt.n. 1020346877  del 20/11/2020 SPESE POSTALI;03/12/2020;26;0;220;1;Spese correnti;3;Acquisto di beni e servizi;2;Acquisto di servizi;16;Servizi amministrativi;2;Spese postali;03/12/2020
1290;2;0;1.021,00;3.653,40;POSTE ITALIANE SPA - PROVENTI POLO LOGISTICO;Z0B2DA2D69;SALDO Fatt.n. 1020345448  del 20/11/2020 SPESE POSTALI;03/12/2020;26;0;220;1;Spese correnti;3;Acquisto di beni e servizi;2;Acquisto di servizi;16;Servizi amministrativi;2;Spese postali;03/12/2020
1290;3;0;2.386,85;3.653,40;POSTE ITALIANE SPA - PROVENTI POLO LOGISTICO;Z0B2DA2D69;SALDO Fatt.n. 1020345370  del 20/11/2020 SPESE POSTALI;03/12/2020;26;0;220;1;Spese correnti;3;Acquisto di beni e servizi;2;Acquisto di servizi;16;Servizi amministrativi;2;Spese postali;03/12/2020
1291;1;0;3.223,00;3.223,00;TECNO METAL S.R.L.;Z062F09CA1;SALDO Fatt.n. 00013/R3  del 16/11/2020 INTERVENTO SOSTITUZIONE MECCANISMI DI APERTURA FINESTRE DEL PLESSO DI CA'RAINATI;03/12/2020;769;0;357;2;Spese in conto capitale;2;Investimenti fissi lordi e acquisto di terreni;1;Beni materiali;9;Beni immobili;3;Fabbricati ad uso scolastico;03/12/2020
1292;1;0;5.000,00;5.000,00;FASAN ANNA;ZFA2B24E70;ACCONTO Fatt.n. FATTPA 7_20  del 05/11/2020 ESUMAZIONI ED ESTUMULAZIONI STRAORDINARIE CIMITERO;03/12/2020;413;1;595;1;Spese correnti;3;Acquisto di beni e servizi;2;Acquisto di servizi;9;Manutenzione ordinaria e riparazioni;12;Manutenzione ordinaria e riparazioni di terreni e beni materiali non prodotti;03/12/2020
1293;1;0;141,6;141,6;FASAN ANNA;ZFA2B24E70;ACCONTO Fatt.n. FATTPA 7_20  del 05/11/2020 ESUMAZIONI ED ESTUMULAZIONI STRAORDINARIE CIMITERO;03/12/2020;413;0;596;1;Spese correnti;3;Acquisto di beni e servizi;2;Acquisto di servizi;5;Utenze e canoni;999;Utenze e canoni per altri servizi n.a.c.;03/12/2020
1294;1;0;690;690;FASAN ANNA;ZFA2B24E70;SALDO Fatt.n. FATTPA 7_20  del 05/11/2020 ESUMAZIONI ED ESTUMULAZIONI STRAORDINARIE CIMITERO;03/12/2020;581;0;597;1;Spese correnti;4;Trasferimenti correnti;2;Trasferimenti correnti a Famiglie;5;Altri trasferimenti a famiglie;999;Altri trasferimenti a famiglie n.a.c.;03/12/2020
1295;1;0;1.037,00;1.037,00;TIPOGRAFIA BATTAGIN SRL;Z3B2E3009A;SALDO Fatt.n. 9/P  del 31/10/2020 MANUTENZIONE AUTO COMUNALI;03/12/2020;47;1;285;1;Spese correnti;3;Acquisto di beni e servizi;2;Acquisto di servizi;9;Manutenzione ordinaria e riparazioni;1;Manutenzione ordinaria e riparazioni di mezzi di trasporto ad uso civile, di sicurezza e ordine pubblico;03/12/2020
1296;1;0;-1.146,00;1.042,00;MARZYNSKA ILONA MARZENA;Z442E9131C;SALDO Fatt.n. FPA 2/20  del 26/11/2020 NOTA DI CREDITO A STORNO FT 1/20 DEL 29/10/2020;03/12/2020;64;1;329;1;Spese correnti;3;Acquisto di beni e servizi;2;Acquisto di servizi;11;Prestazioni professionali e specialistiche;999;Altre prestazioni professionali e specialistiche n.a.c.;03/12/2020
1296;2;0;1.042,00;1.042,00;MARZYNSKA ILONA MARZENA;Z442E9131C;SALDO Fatt.n. FPA 3/20  del 26/11/2020 PRATICA AGIBILITA' COMPENDIO CASTELLARO;03/12/2020;64;1;329;1;Spese correnti;3;Acquisto di beni e servizi;2;Acquisto di servizi;11;Prestazioni professionali e specialistiche;999;Altre prestazioni professionali e specialistiche n.a.c.;03/12/2020
1296;3;0;1.146,00;1.042,00;MARZYNSKA ILONA MARZENA;Z442E9131C;SALDO Fatt.n. FPA 1/20  del 29/10/2020 SPESE PROGETTAZIONE MUSEO;03/12/2020;64;1;329;1;Spese correnti;3;Acquisto di beni e servizi;2;Acquisto di servizi;11;Prestazioni professionali e specialistiche;999;Altre prestazioni professionali e specialistiche n.a.c.;03/12/2020
1297;1;0;173,48;1.677,01;UNICOOPER SERVIZI S.C.R.L.;ZDB2BDF192;SALDO Fatt.n. 2008  del 19/11/2020 SANIFICAZIONE STRAORDINARIA MUSEO 22 E 29 OTTOBRE 2020;03/12/2020;561;3;274;1;Spese correnti;3;Acquisto di beni e servizi;2;Acquisto di servizi;13;Servizi ausiliari per il funzionamento dell'ente;2;Servizi di pulizia e lavanderia;03/12/2020
1297;2;0;1.503,53;1.677,01;UNICOOPER SERVIZI S.C.R.L.;ZDB2BDF192;SALDO Fatt.n. 2006  del 19/11/2020 SANIFICAZIONE STRAORDINARIA LA ROGGIA: SETT.-OTT. 2020;03/12/2020;561;3;274;1;Spese correnti;3;Acquisto di beni e servizi;2;Acquisto di servizi;13;Servizi ausiliari per il funzionamento dell'ente;2;Servizi di pulizia e lavanderia;03/12/2020
1298;1;0;1.275,88;1.275,88;UNICOOPER SERVIZI S.C.R.L.;ZDB2BDF192;SALDO Fatt.n. 2005  del 19/11/2020 SANIFICAZIONE STRAORDINARIA SCUOLE CA' RAINATI: 26/08/20-12/09/2020;03/12/2020;34;2;45;1;Spese correnti;3;Acquisto di beni e servizi;2;Acquisto di servizi;13;Servizi ausiliari per il funzionamento dell'ente;2;Servizi di pulizia e lavanderia;03/12/2020
1299;1;0;28,06;595,36;SICURITALIA IVRI S.P.A.;Z3827208DE;SALDO Fatt.n. 9117014714  del 30/11/2020 SERVIZI ISPETTIVI - NOVEMBRE 2020;03/12/2020;235;0;92;1;Spese correnti;3;Acquisto di beni e servizi;2;Acquisto di servizi;5;Utenze e canoni;999;Utenze e canoni per altri servizi n.a.c.;03/12/2020
1299;2;0;567,3;595,36;SICURITALIA IVRI S.P.A.;Z3827208DE;SALDO Fatt.n. 9117014090  del 13/11/2020 SERVIZI DI PRONTO INTERVENTO;03/12/2020;235;0;92;1;Spese correnti;3;Acquisto di beni e servizi;2;Acquisto di servizi;5;Utenze e canoni;999;Utenze e canoni per altri servizi n.a.c.;03/12/2020
1300;1;0;2.141,10;2.141,10;K.D. DISINFESTAZIONI & DERATTIZZAZIONI S.R.L.;Z792CF58E1;SALDO Fatt.n. FPA 26/20  del 05/11/2020 SERVIZIO LARVICIDA SUL TERRITORIO;03/12/2020;510;1;154;1;Spese correnti;3;Acquisto di beni e servizi;2;Acquisto di servizi;99;Altri servizi;999;Altri servizi diversi n.a.c.;03/12/2020
1301;1;0;30.972,90;30.972,90;COSTRUZIONI VIRAGO S.N.C.;7962522106;SALDO Fatt.n. 9/PA  del 23/11/2020 ADEGUAMENTO SISMICO EFFIC. ENERGETICO SCUOLE;03/12/2020;779;0;288;2;Spese in conto capitale;2;Investimenti fissi lordi e acquisto di terreni;1;Beni materiali;9;Beni immobili;3;Fabbricati ad uso scolastico;03/12/2020
1302;1;0;4.051,99;4.051,99;STUDIO SMANIOTTO & MOROSIN;Z49292B1FC;ACCONTO Fatt.n. 46  del 24/11/2020 MIGLIORAMENTO SISMICO ED EFF. ENERGETICO SCUOLE;03/12/2020;775;5;649;2;Spese in conto capitale;2;Investimenti fissi lordi e acquisto di terreni;3;Beni immateriali;5;Incarichi professionali per la realizzazione di investimenti;1;Incarichi professionali per la realizzazione di investimenti;03/12/2020
1303;1;0;10.578,08;10.578,08;STUDIO SMANIOTTO & MOROSIN;Z49292B1FC;SALDO Fatt.n. 46  del 24/11/2020 MIGLIORAMENTO SISMICO ED EFF. ENERGETICO SCUOLE;03/12/2020;775;5;286;2;Spese in conto capitale;2;Investimenti fissi lordi e acquisto di terreni;3;Beni immateriali;5;Incarichi professionali per la realizzazione di investimenti;1;Incarichi professionali per la realizzazione di investimenti;03/12/2020
1304;1;0;200;200;OMESSO NOMINATIVO NEL RISPETTO DELLA NORMATIVA SULLA PROTEZIONE DATI PERSONALI; ;CONTRIBUTO ECONOMICO STRAORDINARIO.;03/12/2020;576;0;386;1;Spese correnti;4;Trasferimenti correnti;2;Trasferimenti correnti a Famiglie;2;Interventi assistenziali;999;Altri assegni e sussidi assistenziali;03/12/2020
1305;1;0;500;500;OMESSO NOMINATIVO NEL RISPETTO DELLA NORMATIVA SULLA PROTEZIONE DATI PERSONALI; ;CONTRIBUTO ECONOMICO STRAORDINARIO.;03/12/2020;576;0;387;1;Spese correnti;4;Trasferimenti correnti;2;Trasferimenti correnti a Famiglie;2;Interventi assistenziali;999;Altri assegni e sussidi assistenziali;03/12/2020
1306;1;0;0,41;97,22;ALTO TREVIGIANO SERVIZI S.R.L.;Z3F2BAC0F4;SALDO Fatt.n. 62202000004777  del 13/11/2020 SERVIZIO IDRICO: 02/07/20-30/09/20;04/12/2020;591;2;105;1;Spese correnti;3;Acquisto di beni e servizi;2;Acquisto di servizi;5;Utenze e canoni;5;Acqua;04/12/2020
1306;2;0;8,28;97,22;ALTO TREVIGIANO SERVIZI S.R.L.;Z3F2BAC0F4;SALDO Fatt.n. 62202000004767  del 13/11/2020 SERVIZIO IDRICO: 29/04/20-03/10/20;04/12/2020;591;2;105;1;Spese correnti;3;Acquisto di beni e servizi;2;Acquisto di servizi;5;Utenze e canoni;5;Acqua;04/12/2020
1306;3;0;12,4;97,22;ALTO TREVIGIANO SERVIZI S.R.L.;Z3F2BAC0F4;SALDO Fatt.n. 62202000004769  del 13/11/2020 SERVIZIO IDRICO: 24/04/20-01/10/20;04/12/2020;591;2;105;1;Spese correnti;3;Acquisto di beni e servizi;2;Acquisto di servizi;5;Utenze e canoni;5;Acqua;04/12/2020
1306;4;0;17,01;97,22;ALTO TREVIGIANO SERVIZI S.R.L.;Z3F2BAC0F4;SALDO Fatt.n. 62202000004755  del 13/11/2020 SERVIZIO IDRICO: 25/04/20-08/10/20;04/12/2020;591;2;105;1;Spese correnti;3;Acquisto di beni e servizi;2;Acquisto di servizi;5;Utenze e canoni;5;Acqua;04/12/2020
1306;5;0;59,12;97,22;ALTO TREVIGIANO SERVIZI S.R.L.;Z3F2BAC0F4;SALDO Fatt.n. 62202000004754  del 13/11/2020 SERVIZIO IDRICO: 01/05/20-30/09/20;04/12/2020;591;2;105;1;Spese correnti;3;Acquisto di beni e servizi;2;Acquisto di servizi;5;Utenze e canoni;5;Acqua;04/12/2020
1307;1;0;-0,43;109,87;ALTO TREVIGIANO SERVIZI S.R.L.;Z3F2BAC0F4;SALDO Fatt.n. 62202000004770  del 13/11/2020 SERVIZIO IDRICO: 30/10/20-08/10/20;04/12/2020;591;2;105;1;Spese correnti;3;Acquisto di beni e servizi;2;Acquisto di servizi;5;Utenze e canoni;5;Acqua;04/12/2020
1307;2;0;0,58;109,87;ALTO TREVIGIANO SERVIZI S.R.L.;Z3F2BAC0F4;SALDO Fatt.n. 62202000004752  del 13/11/2020 SERVIZIO IDRICO: 03/05/20-07/10/20;04/12/2020;591;2;105;1;Spese correnti;3;Acquisto di beni e servizi;2;Acquisto di servizi;5;Utenze e canoni;5;Acqua;04/12/2020
1307;3;0;14,7;109,87;ALTO TREVIGIANO SERVIZI S.R.L.;Z3F2BAC0F4;SALDO Fatt.n. 62202000004768  del 13/11/2020 SERVIZIO IDRICO: 05/05/20-30/09/20;04/12/2020;591;2;105;1;Spese correnti;3;Acquisto di beni e servizi;2;Acquisto di servizi;5;Utenze e canoni;5;Acqua;04/12/2020
1307;4;0;15,91;109,87;ALTO TREVIGIANO SERVIZI S.R.L.;Z3F2BAC0F4;SALDO Fatt.n. 62202000004753  del 13/11/2020 SERVIZIO IDRICO: 28/04/20-05/10/20;04/12/2020;591;2;105;1;Spese correnti;3;Acquisto di beni e servizi;2;Acquisto di servizi;5;Utenze e canoni;5;Acqua;04/12/2020
1307;5;0;79,11;109,87;ALTO TREVIGIANO SERVIZI S.R.L.;Z3F2BAC0F4;SALDO Fatt.n. 62202000004775  del 13/11/2020 SERVIZIO IDRICO: 01/06/20-30/09/20;04/12/2020;591;2;105;1;Spese correnti;3;Acquisto di beni e servizi;2;Acquisto di servizi;5;Utenze e canoni;5;Acqua;04/12/2020
1308;1;0;-20,92;1.707,27;ALTO TREVIGIANO SERVIZI S.R.L.;Z3F2BAC0F4;SALDO Fatt.n. 62202000004750  del 13/11/2020 SERVIZIO IDRICO CENTRO CULT.: 02/01/2019-08/10/2020;04/12/2020;252;0;104;1;Spese correnti;3;Acquisto di beni e servizi;2;Acquisto di servizi;5;Utenze e canoni;5;Acqua;04/12/2020
1308;2;0;166,83;1.707,27;ALTO TREVIGIANO SERVIZI S.R.L.;Z3F2BAC0F4;SALDO Fatt.n. 62202000004773  del 13/11/2020 SERVIZIO IDRICO SCUOLA MEDIA: 01/06/20-30/09/20;04/12/2020;252;0;104;1;Spese correnti;3;Acquisto di beni e servizi;2;Acquisto di servizi;5;Utenze e canoni;5;Acqua;04/12/2020
1308;3;0;1.561,36;1.707,27;ALTO TREVIGIANO SERVIZI S.R.L.;Z3F2BAC0F4;SALDO Fatt.n. 62202000004765  del 13/11/2020 SERVIZIO IDRICO SCUOLA MEDIA: 01/06/20-30/09/20;04/12/2020;252;0;104;1;Spese correnti;3;Acquisto di beni e servizi;2;Acquisto di servizi;5;Utenze e canoni;5;Acqua;04/12/2020
1309;1;0;-0,88;26,55;ALTO TREVIGIANO SERVIZI S.R.L.;Z3F2BAC0F4;SALDO Fatt.n. 62202000004758  del 13/11/2020 SERVIZIO IDRICO LA TORRE;04/12/2020;313;2;101;1;Spese correnti;3;Acquisto di beni e servizi;2;Acquisto di servizi;5;Utenze e canoni;5;Acqua;04/12/2020
1309;2;0;27,43;26,55;ALTO TREVIGIANO SERVIZI S.R.L.;Z3F2BAC0F4;SALDO Fatt.n. 62202000004751  del 13/11/2020 SERVIZIO IDRICO LA TORRE: 02/01/20-08/10/20;04/12/2020;313;2;101;1;Spese correnti;3;Acquisto di beni e servizi;2;Acquisto di servizi;5;Utenze e canoni;5;Acqua;04/12/2020
1310;1;0;184,84;184,84;ALTO TREVIGIANO SERVIZI S.R.L.;Z3F2BAC0F4;SALDO Fatt.n. 62202000004760  del 13/11/2020 SERVIZIO IDRICO MUNICIPIO: 30/04/20-30/09/20;04/12/2020;34;0;97;1;Spese correnti;3;Acquisto di beni e servizi;2;Acquisto di servizi;5;Utenze e canoni;5;Acqua;04/12/2020
1311;1;0;64,39;966,43;ALTO TREVIGIANO SERVIZI S.R.L.;Z3F2BAC0F4;SALDO Fatt.n. 62202000004756  del 13/11/2020 SERVIZIO IDRICO IMP. SPORTIVI: 01/06/20-30/09/20;04/12/2020;530;0;103;1;Spese correnti;3;Acquisto di beni e servizi;2;Acquisto di servizi;5;Utenze e canoni;5;Acqua;04/12/2020
1311;2;0;204,86;966,43;ALTO TREVIGIANO SERVIZI S.R.L.;Z3F2BAC0F4;SALDO Fatt.n. 62202000004764  del 13/11/2020 SERVIZIO IDRICO IMP. SPORTIVI: 01/06/20-30/09/20;04/12/2020;530;0;103;1;Spese correnti;3;Acquisto di beni e servizi;2;Acquisto di servizi;5;Utenze e canoni;5;Acqua;04/12/2020
1311;3;0;697,18;966,43;ALTO TREVIGIANO SERVIZI S.R.L.;Z3F2BAC0F4;SALDO Fatt.n. 62202000004763  del 13/11/2020 SERVIZIO IDRICO IMP. SPORTIVI: 01/06/20-30/09/20;04/12/2020;530;0;103;1;Spese correnti;3;Acquisto di beni e servizi;2;Acquisto di servizi;5;Utenze e canoni;5;Acqua;04/12/2020
1312;1;0;24,34;64,4;ALTO TREVIGIANO SERVIZI S.R.L.;Z3F2BAC0F4;SALDO Fatt.n. 62202000004766  del 13/11/2020 SERVIZIO IDRICO CIMITERO: 28/04/20-05/10/20;04/12/2020;413;0;102;1;Spese correnti;3;Acquisto di beni e servizi;2;Acquisto di servizi;5;Utenze e canoni;5;Acqua;04/12/2020
1312;2;0;40,06;64,4;ALTO TREVIGIANO SERVIZI S.R.L.;Z3F2BAC0F4;SALDO Fatt.n. 62202000004759  del 13/11/2020 SERVIZIO IDRICO CIMITERO: 01/06/20-30/09/20;04/12/2020;413;0;102;1;Spese correnti;3;Acquisto di beni e servizi;2;Acquisto di servizi;5;Utenze e canoni;5;Acqua;04/12/2020
1313;1;0;50,61;50,61;ALTO TREVIGIANO SERVIZI S.R.L.;Z3F2BAC0F4;SALDO Fatt.n. 62202000004774  del 13/11/2020 SERVIZIO IDRICO LA ROGGIA: 23/04/20-07/10/20;04/12/2020;561;2;100;1;Spese correnti;3;Acquisto di beni e servizi;2;Acquisto di servizi;5;Utenze e canoni;5;Acqua;04/12/2020
1314;1;0;1.093,07;1.093,07;ASSOCIAZIONE COMUNI MARCA TREVIGIANA; ;IMPEGNO E LIQUIDAZIONE QUOTE PROGETTAZIONE BANDO SERVIZIO CIVILE UNIVERSALE 2020 ALLASSOCIAZIONE COMUNI MARCA TREVIGIANA;04/12/2020;51;1;388;1;Spese correnti;3;Acquisto di beni e servizi;2;Acquisto di servizi;99;Altri servizi;3;Quote di associazioni;04/12/2020
1315;1;0;6,93;6,93;ASSOCIAZIONE COMUNI MARCA TREVIGIANA; ;IMPEGNO E LIQUIDAZIONE QUOTE PROGETTAZIONE BANDO SERVIZIO CIVILE UNIVERSALE 2020 ALLASSOCIAZIONE COMUNI MARCA TREVIGIANA;04/12/2020;334;0;389;1;Spese correnti;4;Trasferimenti correnti;1;Trasferimenti correnti a Amministrazioni Pubbliche;4;Trasferimenti correnti a organismi interni e/o unità locali della amministrazione;1;Trasferimenti correnti a organismi interni e/o unità locali della amministrazione;04/12/2020
1316;1;0;78,22;78,22;ALTO TREVIGIANO SERVIZI S.R.L.;Z3F2BAC0F4;SALDO Fatt.n. 62202000004776  del 13/11/2020 SERVIZIO IDRICO LA ROGGIA: 23/04/20-07/10-20;04/12/2020;561;2;100;1;Spese correnti;3;Acquisto di beni e servizi;2;Acquisto di servizi;5;Utenze e canoni;5;Acqua;04/12/2020
1317;1;0;545,95;545,95;COLIBRI' SYSTEM S.P.A.;Z632F14BB5;SALDO Fatt.n. 20600332  del 17/11/2020 FORNITURA MATERIALI PER BIBLIOTECA COMUNALE;09/12/2020;331;0;363;1;Spese correnti;3;Acquisto di beni e servizi;1;Acquisto di beni;2;Altri beni di consumo;1;Carta, cancelleria e stampati;09/12/2020
1318;1;0;1.354,46;1.354,46;KYOCERA DOCUMENT SOLUTIONS ITALIA S.P.A.;ZF02648E30;SALDO Fatt.n. 1010648353  del 17/11/2020 NOLEGGIO FOTOCOPIATORI;09/12/2020;34;0;519;1;Spese correnti;3;Acquisto di beni e servizi;2;Acquisto di servizi;5;Utenze e canoni;999;Utenze e canoni per altri servizi n.a.c.;09/12/2020
1319;1;0;522,95;522,95;ZEMA S.R.L.S.;ZA02EF2A57;SALDO Fatt.n. 1590/E  del 19/11/2020 FORNITURA DI PERSONAL COMPUTER PER UFF. COMUNALI;09/12/2020;746;0;348;2;Spese in conto capitale;2;Investimenti fissi lordi e acquisto di terreni;1;Beni materiali;7;Hardware;2;Postazioni di lavoro;09/12/2020
1320;1;0;67,1;67,1;BIBLIO S.R.L.;Z8A2F1B167;SALDO Fatt.n. 229  del 18/11/2020 FORNITURA LIBRI PER BIBLIOTECA COMUNALE;10/12/2020;331;0;364;1;Spese correnti;3;Acquisto di beni e servizi;1;Acquisto di beni;2;Altri beni di consumo;1;Carta, cancelleria e stampati;10/12/2020
1321;1;0;68,31;261,41;MASSARO LIBRI DI LIBERALI G. ALBINO & C. S.A.S.;Z7C2BFC524;SALDO Fatt.n. 245-20  del 23/11/2020 FORNITURA LIBRI PER SCUOLA PRIMARIA;10/12/2020;239;0;305;1;Spese correnti;3;Acquisto di beni e servizi;1;Acquisto di beni;1;Giornali, riviste e pubblicazioni;2;Pubblicazioni;10/12/2020
1321;2;0;193,1;261,41;MASSARO LIBRI DI LIBERALI G. ALBINO & C. S.A.S.;Z7C2BFC524;SALDO Fatt.n. 275-20  del 01/12/2020 FORNITURA LIBRI PER SCUOLA PRIMARIA;10/12/2020;239;0;305;1;Spese correnti;3;Acquisto di beni e servizi;1;Acquisto di beni;1;Giornali, riviste e pubblicazioni;2;Pubblicazioni;10/12/2020
1322;1;0;4.026,00;4.026,00;ACCATRE S.R.L.;ZF62B5AE22;SALDO Fatt.n. 200825/1  del 23/11/2020 CONVENZIONE PER I SERVIZI FINANZIARI - ANNO 2020;10/12/2020;39;0;627;1;Spese correnti;3;Acquisto di beni e servizi;2;Acquisto di servizi;19;Servizi informatici e di telecomunicazioni;2;Assistenza all'utente e formazione;10/12/2020
1323;1;0;1.041,60;1.041,60;KIRIKU' SOCIETA' COOPERATIVA SOCIALE ONLUS;ZFA2BFBEE7;SALDO Fatt.n. 1031  del 01/12/2020 PRESTAZIONI SOCIALI - NOVEMBRE 2020;10/12/2020;559;0;56;1;Spese correnti;3;Acquisto di beni e servizi;2;Acquisto di servizi;99;Altri servizi;999;Altri servizi diversi n.a.c.;10/12/2020
1324;1;0;25,01;288;CARROZZERIA CARRON S.R.L.;Z692AFDFFA;SALDO Fatt.n. 732  del 30/11/2020 RIPARAZIONE AUTO COMUNALI;10/12/2020;590;1;676;1;Spese correnti;3;Acquisto di beni e servizi;2;Acquisto di servizi;9;Manutenzione ordinaria e riparazioni;1;Manutenzione ordinaria e riparazioni di mezzi di trasporto ad uso civile, di sicurezza e ordine pubblico;10/12/2020
1324;2;0;131,28;288;CARROZZERIA CARRON S.R.L.;Z692AFDFFA;SALDO Fatt.n. 733  del 30/11/2020 RIPARAZIONE VEICOLI COMUNALI;10/12/2020;590;1;676;1;Spese correnti;3;Acquisto di beni e servizi;2;Acquisto di servizi;9;Manutenzione ordinaria e riparazioni;1;Manutenzione ordinaria e riparazioni di mezzi di trasporto ad uso civile, di sicurezza e ordine pubblico;10/12/2020
1324;3;0;131,71;288;CARROZZERIA CARRON S.R.L.;Z692AFDFFA;SALDO Fatt.n. 734  del 30/11/2020 RIPARAZIONE AUTO COMUNALI;10/12/2020;590;1;676;1;Spese correnti;3;Acquisto di beni e servizi;2;Acquisto di servizi;9;Manutenzione ordinaria e riparazioni;1;Manutenzione ordinaria e riparazioni di mezzi di trasporto ad uso civile, di sicurezza e ordine pubblico;10/12/2020
1325;1;0;4.114,50;4.114,50;CASA DI RIPOSO 'AITA'; ;SALDO Fatt.n. 435/B  del 30/11/2020 SERVIZIO DI A.D. - OTTOBRE 2020;10/12/2020;562;1;240;1;Spese correnti;3;Acquisto di beni e servizi;2;Acquisto di servizi;15;Contratti di servizio pubblico;9;Contratti di servizio di assistenza sociale domiciliare;10/12/2020
1326;1;0;36,6;36,6;LA IDROFERRAMENTA SRL;Z3D2D0846B;SALDO Fatt.n. 99/PA  del 30/11/2020 FORNITURA FERRAMENTA;10/12/2020;591;0;161;1;Spese correnti;3;Acquisto di beni e servizi;1;Acquisto di beni;2;Altri beni di consumo;999;Altri beni e materiali di consumo n.a.c.;10/12/2020
1327;1;0;108,01;108,01;KUWAIT PETROLEUM ITALIA S.P.A.;Z4E197F01F;SALDO Fatt.n. PJ03296260  del 30/11/2020 CARBURANTE UFF. SOCIALE - NOVEMBRE 2020;10/12/2020;571;0;110;1;Spese correnti;3;Acquisto di beni e servizi;1;Acquisto di beni;2;Altri beni di consumo;2;Carburanti, combustibili e lubrificanti;10/12/2020
1328;1;0;55,01;55,01;KUWAIT PETROLEUM ITALIA S.P.A.;Z4E197F01F;SALDO Fatt.n. PJ03296261  del 30/11/2020 CARBURANTE VIGILI NOVEMBRE 2020;10/12/2020;47;0;108;1;Spese correnti;3;Acquisto di beni e servizi;1;Acquisto di beni;2;Altri beni di consumo;2;Carburanti, combustibili e lubrificanti;10/12/2020
1329;1;0;202,86;202,86;BELLNET INTERNATIONAL S.R.L.;Z752BFBD5F;SALDO Fatt.n. FATTPA 2726_20  del 30/11/2020 TRAFFICO TELEFONICO - DICEMBRE 2020;10/12/2020;34;0;58;1;Spese correnti;3;Acquisto di beni e servizi;2;Acquisto di servizi;5;Utenze e canoni;1;Telefonia fissa;10/12/2020
1330;1;0;1.268,80;1.268,80;ZANINOTTO LUCIO;ZCE2D779CB;SALDO Fatt.n. FATTPA 4_20  del 03/12/2020 INCARICO ESTERNO;10/12/2020;152;0;198;1;Spese correnti;3;Acquisto di beni e servizi;2;Acquisto di servizi;11;Prestazioni professionali e specialistiche;999;Altre prestazioni professionali e specialistiche n.a.c.;10/12/2020
1331;1;0;915;915;INFOTEAM SRL;Z502E802D5;SALDO Fatt.n. 00000003162  del 30/11/2020 CANONE MENSILE NOLEGGI APPARATI;10/12/2020;235;0;319;1;Spese correnti;3;Acquisto di beni e servizi;2;Acquisto di servizi;5;Utenze e canoni;999;Utenze e canoni per altri servizi n.a.c.;10/12/2020
1332;1;0;101,06;239,09;KUWAIT PETROLEUM ITALIA S.P.A.;Z4E197F01F;SALDO Fatt.n. PJ03296259  del 30/11/2020 CARBURANTE AUTO OPERAI - DICEMBRE 2020;10/12/2020;590;0;111;1;Spese correnti;3;Acquisto di beni e servizi;1;Acquisto di beni;2;Altri beni di consumo;2;Carburanti, combustibili e lubrificanti;10/12/2020
1332;2;0;138,03;239,09;KUWAIT PETROLEUM ITALIA S.P.A.;Z4E197F01F;SALDO Fatt.n. PJ03296258  del 30/11/2020 CARBURANTE AUTO OPERAI - DICEMBRE 2020;10/12/2020;590;0;111;1;Spese correnti;3;Acquisto di beni e servizi;1;Acquisto di beni;2;Altri beni di consumo;2;Carburanti, combustibili e lubrificanti;10/12/2020
1333;1;0;96,12;96,12;PLT PUREGREEN;7134285639;SALDO Fatt.n. 20200040003718  del 09/10/2020 FORNITURA ENERGIA ELETTRICA CIMITERI - SETTEMBRE 2020;14/12/2020;413;0;211;1;Spese correnti;3;Acquisto di beni e servizi;2;Acquisto di servizi;5;Utenze e canoni;4;Energia elettrica;14/12/2020
1334;1;0;7.109,62;15.786,05;PLT PUREGREEN;7134285639;SALDO Fatt.n. 20200040003720  del 09/10/2020 FORNITURA ENERGIA ELETTRICA PUBBLICA;14/12/2020;600;0;216;1;Spese correnti;3;Acquisto di beni e servizi;2;Acquisto di servizi;5;Utenze e canoni;4;Energia elettrica;14/12/2020
1334;2;0;8.676,43;15.786,05;PLT PUREGREEN;7134285639;SALDO Fatt.n. 20200040004327  del 13/11/2020 FORNITURA ENERGIA ELETTRICA PUBBLICA;14/12/2020;600;0;216;1;Spese correnti;3;Acquisto di beni e servizi;2;Acquisto di servizi;5;Utenze e canoni;4;Energia elettrica;14/12/2020
1335;1;0;1.978,64;1.978,64;BIM PIAVE NUOVE ENERGIE S.R.L.; ;SALDO Fatt.n. 9001891  del 19/10/2020 Anno termico 2019/2020 -acqua calda 01/05/2020-30/06/2020 - Sede Municipale;14/12/2020;34;0;116;1;Spese correnti;3;Acquisto di beni e servizi;2;Acquisto di servizi;5;Utenze e canoni;6;Gas;14/12/2020
1336;1;0;176,08;6.787,16;BIM PIAVE NUOVE ENERGIE S.R.L.; ;SALDO Fatt.n. 9001898  del 19/10/2020 Anno termico 2019/2020 - acqua calda 01/05/2020-30/06/2020 - Scuola Primaria;14/12/2020;252;0;121;1;Spese correnti;3;Acquisto di beni e servizi;2;Acquisto di servizi;5;Utenze e canoni;6;Gas;14/12/2020
1336;2;0;1.598,19;6.787,16;BIM PIAVE NUOVE ENERGIE S.R.L.; ;SALDO Fatt.n. 9001897  del 19/10/2020 Anno termico 2019/2020 - acqua calda 01/05/2020-30/06/2020 - Scuola Primaria;14/12/2020;252;0;121;1;Spese correnti;3;Acquisto di beni e servizi;2;Acquisto di servizi;5;Utenze e canoni;6;Gas;14/12/2020
1336;3;0;5.012,89;6.787,16;BIM PIAVE NUOVE ENERGIE S.R.L.; ;SALDO Fatt.n. 9001896  del 19/10/2020 Anno termico 2019/2020 -acqua calda 01/05/2020-30/06/2020 - Scuola Secondaria/Primaria;14/12/2020;252;0;121;1;Spese correnti;3;Acquisto di beni e servizi;2;Acquisto di servizi;5;Utenze e canoni;6;Gas;14/12/2020
1337;1;0;2.989,85;2.989,85;A.S. DI ANDREATTA GIUSEPPE & C. S.R.L.;Z162D6230A;SALDO Fatt.n. 847  del 30/11/2020 MANUTENZIONE IMPIANTO PUBBLICA ILLUMINAZIONE;14/12/2020;601;0;191;1;Spese correnti;3;Acquisto di beni e servizi;2;Acquisto di servizi;15;Contratti di servizio pubblico;15;Contratti di servizio per l'illuminazione pubblica;14/12/2020
1338;1;0;899,15;899,15;ALTO TREVIGIANO SERVIZI S.R.L.;Z3F2BAC0F4;SALDO Fatt.n. 62202000004761  del 13/11/2020 SERVIZIO IDRICO STRADE: 01/05/20-30/09/20;14/12/2020;591;2;105;1;Spese correnti;3;Acquisto di beni e servizi;2;Acquisto di servizi;5;Utenze e canoni;5;Acqua;14/12/2020
1339;1;0;62,6;62,6;ALTO TREVIGIANO SERVIZI S.R.L.;Z3F2BAC0F4;SALDO Fatt.n. 62202000004757  del 13/11/2020 SERVIZIO IDRICO CIMITERO: 01/06/20-30/09/20;14/12/2020;413;0;102;1;Spese correnti;3;Acquisto di beni e servizi;2;Acquisto di servizi;5;Utenze e canoni;5;Acqua;14/12/2020
1340;1;0;16,52;2.708,26;ALTO TREVIGIANO SERVIZI S.R.L.;Z3F2BAC0F4;SALDO Fatt.n. 62202000004771  del 13/11/2020 SERVIZIO IDRICO SCUOLE: 22/03/2019-30/09/2020;14/12/2020;235;0;98;1;Spese correnti;3;Acquisto di beni e servizi;2;Acquisto di servizi;5;Utenze e canoni;5;Acqua;14/12/2020
1340;2;0;142,8;2.708,26;ALTO TREVIGIANO SERVIZI S.R.L.;Z3F2BAC0F4;SALDO Fatt.n. 62202000004772  del 13/11/2020 SERVIZIO IDRICO SCUOLE: 01/06/2020-30/09/2020;14/12/2020;235;0;98;1;Spese correnti;3;Acquisto di beni e servizi;2;Acquisto di servizi;5;Utenze e canoni;5;Acqua;14/12/2020
1340;3;0;259,56;2.708,26;ALTO TREVIGIANO SERVIZI S.R.L.;Z3F2BAC0F4;SALDO Fatt.n. 62202000002452  del 25/08/2020 SERVIZIO IDRICO SCUOLA PRIMARIA: FEBB-MAGGIO 2020;14/12/2020;235;0;98;1;Spese correnti;3;Acquisto di beni e servizi;2;Acquisto di servizi;5;Utenze e canoni;5;Acqua;14/12/2020
1340;4;0;435,48;2.708,26;ALTO TREVIGIANO SERVIZI S.R.L.;Z3F2BAC0F4;SALDO Fatt.n. 62202000004762  del 13/11/2020 SERVIZIO IDRICO SCUOLE: 01/06/2020-30/09/2020;14/12/2020;235;0;98;1;Spese correnti;3;Acquisto di beni e servizi;2;Acquisto di servizi;5;Utenze e canoni;5;Acqua;14/12/2020
1340;5;0;1.853,90;2.708,26;ALTO TREVIGIANO SERVIZI S.R.L.;Z3F2BAC0F4;SALDO Fatt.n. 62202000002446  del 25/08/2020 SERVIZIO IDRICO SCUOLA PRIMARIA: SETT. 2019-MAGGIO 2020;14/12/2020;235;0;98;1;Spese correnti;3;Acquisto di beni e servizi;2;Acquisto di servizi;5;Utenze e canoni;5;Acqua;14/12/2020
1341;1;0;10.492,00;10.492,00;IDEA GIARDINO SNC;Z192CEDA04;SALDO Fatt.n. 69  del 20/11/2020 MANUTENZIONE AREE VERDI;14/12/2020;512;0;229;1;Spese correnti;3;Acquisto di beni e servizi;2;Acquisto di servizi;99;Altri servizi;9;Acquisto di sevizi per verde e arredo urbano;14/12/2020
1342;1;0;514,16;514,16;AS.COM SERVIZI DEL MANDAMENTO S.R.L.; ;SALDO Fatt.n. 00047/02  del 04/12/2020 LOCAZIONE CENTRO PER L'IMPIEGO;14/12/2020;515;0;89;1;Spese correnti;4;Trasferimenti correnti;1;Trasferimenti correnti a Amministrazioni Pubbliche;2;Trasferimenti correnti a Amministrazioni Locali;999;Trasferimenti correnti a altre Amministrazioni Locali n.a.c.;14/12/2020
1343;1;0;641,6;641,6;NOIGROUP Coop. Soc. a R.L.;ZDE2A28443;SALDO Fatt.n. 807  del 30/11/2020 PRESTAZIONI PER IL MUSEO - NOVEMBRE 2020;14/12/2020;303;0;490;1;Spese correnti;3;Acquisto di beni e servizi;2;Acquisto di servizi;99;Altri servizi;999;Altri servizi diversi n.a.c.;14/12/2020
1344;1;0;200;200;SONDA COOPERATIVA SOCIALE ONLUS; ;SALDO Fatt.n. 365/PA/2020  del 30/11/2020 PRESTAZIONI SOCIALI - NOVEMBRE 2020;14/12/2020;576;0;84;1;Spese correnti;4;Trasferimenti correnti;2;Trasferimenti correnti a Famiglie;2;Interventi assistenziali;999;Altri assegni e sussidi assistenziali;14/12/2020
1345;1;0;756,47;756,47;SUPERMERCATO FACCHIN DI FACCHIN A. & S.a.S.; ;SALDO Fatt.n. FPA 29/20  del 07/12/2020 ACQUISTO BENI PER EMERGENZA SANITARIA;14/12/2020;563;0;127;1;Spese correnti;3;Acquisto di beni e servizi;1;Acquisto di beni;2;Altri beni di consumo;11;Generi alimentari;14/12/2020
1346;1;0;459,03;459,03;VERGATI S.R.L.;ZC02D09A00;SALDO Fatt.n. 4169  del 03/12/2020 MANUTENZIONE ORDINARIA VILLA RUBELLI;14/12/2020;310;1;163;1;Spese correnti;3;Acquisto di beni e servizi;2;Acquisto di servizi;9;Manutenzione ordinaria e riparazioni;9;Manutenzione ordinaria e riparazioni di beni immobili di valore culturale, storico ed artistico;14/12/2020
1347;1;0;1.440,00;1.440,00;NOIGROUP Coop. Soc. a R.L.;Z5F268727B;SALDO Fatt.n. 846  del 30/11/2020 GESTIONE BIBLIOTECA - NOVEMBRE 2020;14/12/2020;302;1;553;1;Spese correnti;3;Acquisto di beni e servizi;2;Acquisto di servizi;16;Servizi amministrativi;999;Altre spese per servizi amministrativi;14/12/2020
1348;1;0;676;676;SABBADIN ANNA;Z4A2F5D1C4;SALDO Fatt.n. 6  del 09/12/2020 PROMOZIONI CULTURALI BIBLIOTECA;14/12/2020;305;1;378;1;Spese correnti;3;Acquisto di beni e servizi;2;Acquisto di servizi;2;Organizzazione eventi, pubblicita` e servizi per trasferta;5;Organizzazione e partecipazione a manifestazioni e convegni;14/12/2020
1349;1;0;40,84;40,84;MAXI DI SRL; ;SALDO Fatt.n. D38520999000226  del 10/12/2020 ACQUISTO BENI PER EMERGENZA SANITARIA;14/12/2020;563;0;126;1;Spese correnti;3;Acquisto di beni e servizi;1;Acquisto di beni;2;Altri beni di consumo;11;Generi alimentari;14/12/2020
1350;1;0;1.425,07;1.425,07;E.N.P.A. ENTE NAZIONALE PROTEZIONE ANIMALI ONLUS;75313770EA;SALDO Fatt.n. 1531/PA  del 23/10/2020 CUSTODIA E MANTENIMENTO CANI: LUGLIO-SETT. 2020;14/12/2020;180;0;133;1;Spese correnti;3;Acquisto di beni e servizi;2;Acquisto di servizi;15;Contratti di servizio pubblico;11;Contratti di servizio per la lotta al randagismo;14/12/2020
1351;1;0;5.961,21;5.961,21;AMMINISTRATORI COMUNALI; ;STIPENDI MESE DI: DICEMBRE 20;14/12/2020;2;0;1;1;Spese correnti;3;Acquisto di beni e servizi;2;Acquisto di servizi;1;Organi e incarichi istituzionali dell'amministrazione;1;Organi istituzionali dell'amministrazione - Indennità;14/12/2020
1363;1;0;5,2;5,2;PERSONALE DIPENDENTE - SEDE; ;STIPENDI MESE DI: DICEMBRE 20;14/12/2020;62;0;15;1;Spese correnti;3;Acquisto di beni e servizi;2;Acquisto di servizi;2;Organizzazione eventi, pubblicita` e servizi per trasferta;1;Rimborso per viaggio e trasloco;14/12/2020
1383;1;0;1.342,00;1.342,00;INTERNAVIGARE S.R.L.;Z2A2F6CEED;SALDO Fatt.n. 651  del 14/12/2020 Canone Annuale-servizio di manutenzione;16/12/2020;39;1;398;1;Spese correnti;3;Acquisto di beni e servizi;2;Acquisto di servizi;7;Utilizzo di beni di terzi;6;Licenze d'uso per software;16/12/2020
1384;1;0;1.781,82;1.781,82;UNICOOPER SERVIZI S.C.R.L.;ZDB2BDF192;SALDO Fatt.n. 2197  del 30/11/2020 SANIFICAZIONE STRAORDINARIA UFF. COMUNALI - NOVEMBRE 2020;16/12/2020;34;2;45;1;Spese correnti;3;Acquisto di beni e servizi;2;Acquisto di servizi;13;Servizi ausiliari per il funzionamento dell'ente;2;Servizi di pulizia e lavanderia;16/12/2020
1385;1;0;840,43;840,43;SOCIETA' CONTARINA S.P.A.;Z132BA4E25;SALDO Fatt.n. 0001536/VET  del 26/10/2020 TARIFFA GESTIONE RIFIUTI URBANI - VIA DON MARIO CANCIAN, 4;16/12/2020;510;1;402;1;Spese correnti;3;Acquisto di beni e servizi;2;Acquisto di servizi;99;Altri servizi;999;Altri servizi diversi n.a.c.;16/12/2020
1386;1;0;55;1.953,03;SOCIETA' CONTARINA S.P.A.;Z132BA4E25;SALDO Fatt.n. 0002053/VET  del 03/12/2020 TARIFFA GESTIONE RIFIUTI URBANI;16/12/2020;463;0;115;1;Spese correnti;3;Acquisto di beni e servizi;2;Acquisto di servizi;15;Contratti di servizio pubblico;4;Contratti di servizio per la raccolta rifiuti;16/12/2020
1386;2;0;147,11;1.953,03;SOCIETA' CONTARINA S.P.A.;Z132BA4E25;SALDO Fatt.n. 0001972/VET  del 26/10/2020 TARIFFA GESTIONE RIFIUTI URBANI - VIA B.G. BARBARIGO, 4;16/12/2020;463;0;115;1;Spese correnti;3;Acquisto di beni e servizi;2;Acquisto di servizi;15;Contratti di servizio pubblico;4;Contratti di servizio per la raccolta rifiuti;16/12/2020
1386;3;0;532,05;1.953,03;SOCIETA' CONTARINA S.P.A.;Z132BA4E25;SALDO Fatt.n. 0001656/VET  del 26/10/2020 TARIFFA GESTIONE RIFIUTI URBANI - VIA FOGAL, NC;16/12/2020;463;0;115;1;Spese correnti;3;Acquisto di beni e servizi;2;Acquisto di servizi;15;Contratti di servizio pubblico;4;Contratti di servizio per la raccolta rifiuti;16/12/2020
1386;4;0;1.218,87;1.953,03;SOCIETA' CONTARINA S.P.A.;Z132BA4E25;SALDO Fatt.n. 0001655/VET  del 26/10/2020 TARIFFA GESTIONE RIFIUTI URBANI - VIA L. PEROSI, NC;16/12/2020;463;0;115;1;Spese correnti;3;Acquisto di beni e servizi;2;Acquisto di servizi;15;Contratti di servizio pubblico;4;Contratti di servizio per la raccolta rifiuti;16/12/2020
1387;1;0;530,15;2.768,05;SOCIETA' CONTARINA S.P.A.;Z132BA4E25;SALDO Fatt.n. 0001580/VET  del 26/10/2020 TARIFFA GESTIONE RIFIUTI URBANI  -- VIA SOPRACASTELLO, 1;16/12/2020;463;0;115;1;Spese correnti;3;Acquisto di beni e servizi;2;Acquisto di servizi;15;Contratti di servizio pubblico;4;Contratti di servizio per la raccolta rifiuti;16/12/2020
1387;2;0;530,15;2.768,05;SOCIETA' CONTARINA S.P.A.;Z132BA4E25;SALDO Fatt.n. 0001697/VET  del 26/10/2020 TARIFFA GESTIONE RIFIUTI URBANI - VIA TERESA RUBELLI, 2;16/12/2020;463;0;115;1;Spese correnti;3;Acquisto di beni e servizi;2;Acquisto di servizi;15;Contratti di servizio pubblico;4;Contratti di servizio per la raccolta rifiuti;16/12/2020
1387;3;0;714,16;2.768,05;SOCIETA' CONTARINA S.P.A.;Z132BA4E25;SALDO Fatt.n. 0001733/VET  del 26/10/2020 TARIFFA GESTIONE RIFIUTI URBANI - VIA CAOZOCCO, 10;16/12/2020;463;0;115;1;Spese correnti;3;Acquisto di beni e servizi;2;Acquisto di servizi;15;Contratti di servizio pubblico;4;Contratti di servizio per la raccolta rifiuti;16/12/2020
1387;4;0;993,59;2.768,05;SOCIETA' CONTARINA S.P.A.;Z132BA4E25;SALDO Fatt.n. 0001654/VET  del 26/10/2020 TARIFFA GESTIONE RIFIUTI URBANI - VIA S.PIO X, NC;16/12/2020;463;0;115;1;Spese correnti;3;Acquisto di beni e servizi;2;Acquisto di servizi;15;Contratti di servizio pubblico;4;Contratti di servizio per la raccolta rifiuti;16/12/2020
1388;1;0;464,84;2.284,99;SOCIETA' CONTARINA S.P.A.;Z132BA4E25;SALDO Fatt.n. 0001537/VET  del 26/10/2020 TARIFFA GESTIONE RIFIUTI URBANI - VIA A. CANOVA, NC;16/12/2020;463;0;115;1;Spese correnti;3;Acquisto di beni e servizi;2;Acquisto di servizi;15;Contratti di servizio pubblico;4;Contratti di servizio per la raccolta rifiuti;16/12/2020
1388;2;0;489,62;2.284,99;SOCIETA' CONTARINA S.P.A.;Z132BA4E25;SALDO Fatt.n. 0001696/VET  del 26/10/2020 TARIFFA GESTIONE RIFIUTI URBANI - VIA A. VIVALDI, 9;16/12/2020;463;0;115;1;Spese correnti;3;Acquisto di beni e servizi;2;Acquisto di servizi;15;Contratti di servizio pubblico;4;Contratti di servizio per la raccolta rifiuti;16/12/2020
1388;3;0;493,58;2.284,99;SOCIETA' CONTARINA S.P.A.;Z132BA4E25;SALDO Fatt.n. 0001616/VET  del 26/10/2020 TARIFFA GESTIONE RIFIUTI URBANI - VIA RISORGIMENTO, 169;16/12/2020;463;0;115;1;Spese correnti;3;Acquisto di beni e servizi;2;Acquisto di servizi;15;Contratti di servizio pubblico;4;Contratti di servizio per la raccolta rifiuti;16/12/2020
1388;4;0;836,95;2.284,99;SOCIETA' CONTARINA S.P.A.;Z132BA4E25;SALDO Fatt.n. 0001617/VET  del 26/10/2020 TARIFFA GESTIONE RIFIUTI URBANI - VIA A. CANOVA, 1;16/12/2020;463;0;115;1;Spese correnti;3;Acquisto di beni e servizi;2;Acquisto di servizi;15;Contratti di servizio pubblico;4;Contratti di servizio per la raccolta rifiuti;16/12/2020
1389;1;0;575,54;575,54;INFOTEAM SRL;Z4B2E8D449;SALDO Fatt.n. 00000003236  del 30/11/2020 INTERVENTO TECNICO;16/12/2020;34;5;326;1;Spese correnti;3;Acquisto di beni e servizi;2;Acquisto di servizi;19;Servizi informatici e di telecomunicazioni;9;Servizi per le postazioni di lavoro e relativa manutenzione;16/12/2020
1390;1;0;63.827,22;63.827,22;L.M. COSTRUZIONI GENERALI SRL;829888588B;ACCONTO Fatt.n. 2020    16/E  del 30/11/2020 LAVORI DI SISTEMAZIONE MARCIAPIEDI;16/12/2020;1007;4;335;2;Spese in conto capitale;2;Investimenti fissi lordi e acquisto di terreni;1;Beni materiali;9;Beni immobili;12;Infrastrutture stradali;16/12/2020
1391;1;0;10.734,59;10.734,59;L.M. COSTRUZIONI GENERALI SRL;829888588B;SALDO Fatt.n. 2020    16/E  del 30/11/2020 LAVORI DI SISTEMAZIONE MARCIAPIEDI;16/12/2020;1007;4;617;2;Spese in conto capitale;2;Investimenti fissi lordi e acquisto di terreni;1;Beni materiali;9;Beni immobili;12;Infrastrutture stradali;16/12/2020
1392;1;0;1.885,99;1.885,99;ALFA ANTINCENDIO S.R.L.;ZA5276F7AD;SALDO Fatt.n. 138  del 31/10/2020 SERVIZI AUSILIARI PER CENTRO CULTURALE;16/12/2020;311;2;127;1;Spese correnti;3;Acquisto di beni e servizi;2;Acquisto di servizi;13;Servizi ausiliari per il funzionamento dell'ente;999;Altri servizi ausiliari n.a.c.;16/12/2020
1393;1;0;9.675,00;9.675,00;COMUNE DI CASTELFRANCO VENETO; ;IMPEGNO DI SPESA E LIQUIDAZIONE A FAVORE DEL COMUNE DI CASTELFRANCO VENETO DELLA SECONDA QUOTA RELATIVA AL PROGETTO CULTURALE DI CELEBRAZIONE DELLARTISTA NOE BORDIGNON.;16/12/2020;338;0;380;1;Spese correnti;4;Trasferimenti correnti;1;Trasferimenti correnti a Amministrazioni Pubbliche;2;Trasferimenti correnti a Amministrazioni Locali;3;Trasferimenti correnti a Comuni;16/12/2020
1394;1;0;97,6;97,6;SCREMIN ANDREA;Z282FC2333;SALDO Fatt.n. 98  del 02/12/2020 SOSTITUZIONE BATTERIA FIAT PUNTO;16/12/2020;590;1;404;1;Spese correnti;3;Acquisto di beni e servizi;2;Acquisto di servizi;9;Manutenzione ordinaria e riparazioni;1;Manutenzione ordinaria e riparazioni di mezzi di trasporto ad uso civile, di sicurezza e ordine pubblico;16/12/2020
1395;1;0;338,14;338,14;OMESSO NOMINATIVO NEL RISPETTO DELLA NORMATIVA SULLA PROTEZIONE DATI PERSONALI; ;INTEGRAZIONE DELLIMPEGNO DI SPESA PER PROVVEDERE AL MANTENIMENTO DI UN NUCLEO DISAGIATO.;17/12/2020;576;0;316;1;Spese correnti;4;Trasferimenti correnti;2;Trasferimenti correnti a Famiglie;2;Interventi assistenziali;999;Altri assegni e sussidi assistenziali;17/12/2020
1396;1;0;319,63;319,63;OMESSO NOMINATIVO NEL RISPETTO DELLA NORMATIVA SULLA PROTEZIONE DATI PERSONALI; ;FATTURA ATS N. 61202000458567 DEL 13/11/2020 - CASA DI RIPOSO AITA N. 410/B DEL 31/10/2020 DEL MESE DI OTTOBRE 2020 - S.E.N. BIMESTRE NOV. DIC. 2020.;17/12/2020;576;0;90;1;Spese correnti;4;Trasferimenti correnti;2;Trasferimenti correnti a Famiglie;2;Interventi assistenziali;999;Altri assegni e sussidi assistenziali;17/12/2020
1397;1;0;2.000,00;2.000,00;ASSOC.SENTIERI NATURA-PARCO DEGLI EZZELINI; ;ASSEGNAZIONE CONTRIBUTI AD ASSOCIAZIONI ED ENTI ANNO 2020.;18/12/2020;574;0;409;1;Spese correnti;4;Trasferimenti correnti;1;Trasferimenti correnti a Amministrazioni Pubbliche;4;Trasferimenti correnti a organismi interni e/o unità locali della amministrazione;1;Trasferimenti correnti a organismi interni e/o unità locali della amministrazione;18/12/2020
1398;1;0;2.500,00;2.500,00;ASSOCIAZIONE PRO LOCO SAN ZENONE DEGLI EZZELINI; ;ASSEGNAZIONE CONTRIBUTI AD ASSOCIAZIONI ED ENTI ANNO 2020.;18/12/2020;574;0;410;1;Spese correnti;4;Trasferimenti correnti;1;Trasferimenti correnti a Amministrazioni Pubbliche;4;Trasferimenti correnti a organismi interni e/o unità locali della amministrazione;1;Trasferimenti correnti a organismi interni e/o unità locali della amministrazione;18/12/2020
1399;1;0;3.300,00;3.300,00;F.C.D. UNION EZZELINA; ;ASSEGNAZIONE CONTRIBUTI AD ASSOCIAZIONI ED ENTI ANNO 2020.;18/12/2020;574;0;411;1;Spese correnti;4;Trasferimenti correnti;1;Trasferimenti correnti a Amministrazioni Pubbliche;4;Trasferimenti correnti a organismi interni e/o unità locali della amministrazione;1;Trasferimenti correnti a organismi interni e/o unità locali della amministrazione;18/12/2020
1400;1;0;300;300;ASSOCIAZIONE PADOVA MILLENNIUM BASKET - ONLUS; ;ASSEGNAZIONE CONTRIBUTI AD ASSOCIAZIONI ED ENTI ANNO 2020.;18/12/2020;574;0;412;1;Spese correnti;4;Trasferimenti correnti;1;Trasferimenti correnti a Amministrazioni Pubbliche;4;Trasferimenti correnti a organismi interni e/o unità locali della amministrazione;1;Trasferimenti correnti a organismi interni e/o unità locali della amministrazione;18/12/2020
1401;1;0;100;100;A.S.D. OLTRE ONLUS; ;ASSEGNAZIONE CONTRIBUTI AD ASSOCIAZIONI ED ENTI ANNO 2020.;18/12/2020;574;0;413;1;Spese correnti;4;Trasferimenti correnti;1;Trasferimenti correnti a Amministrazioni Pubbliche;4;Trasferimenti correnti a organismi interni e/o unità locali della amministrazione;1;Trasferimenti correnti a organismi interni e/o unità locali della amministrazione;18/12/2020
1402;1;0;500;500;CARITAS PARROCCHIALE-CENTRO DISTRIBUZIONE ALIMENTARE; ;ASSEGNAZIONE CONTRIBUTI AD ASSOCIAZIONI ED ENTI ANNO 2020.;18/12/2020;574;0;414;1;Spese correnti;4;Trasferimenti correnti;1;Trasferimenti correnti a Amministrazioni Pubbliche;4;Trasferimenti correnti a organismi interni e/o unità locali della amministrazione;1;Trasferimenti correnti a organismi interni e/o unità locali della amministrazione;18/12/2020
1403;1;0;400;400;ASSOCIAZIONE VOLONTARIATO A.V.A.B.; ;ASSEGNAZIONE CONTRIBUTI AD ASSOCIAZIONI ED ENTI ANNO 2020.;18/12/2020;574;0;415;1;Spese correnti;4;Trasferimenti correnti;1;Trasferimenti correnti a Amministrazioni Pubbliche;4;Trasferimenti correnti a organismi interni e/o unità locali della amministrazione;1;Trasferimenti correnti a organismi interni e/o unità locali della amministrazione;18/12/2020
1404;1;0;200;200;ASSOCIAZIONE LA MARGHERITA; ;ASSEGNAZIONE CONTRIBUTI AD ASSOCIAZIONI ED ENTI ANNO 2020.;18/12/2020;574;0;416;1;Spese correnti;4;Trasferimenti correnti;1;Trasferimenti correnti a Amministrazioni Pubbliche;4;Trasferimenti correnti a organismi interni e/o unità locali della amministrazione;1;Trasferimenti correnti a organismi interni e/o unità locali della amministrazione;18/12/2020
1405;1;0;250;250;VITA E LAVORO SOCIETA' COOPERATIVA SOCIALE ONLUS; ;ASSEGNAZIONE CONTRIBUTI AD ASSOCIAZIONI ED ENTI ANNO 2020.;18/12/2020;574;0;417;1;Spese correnti;4;Trasferimenti correnti;1;Trasferimenti correnti a Amministrazioni Pubbliche;4;Trasferimenti correnti a organismi interni e/o unità locali della amministrazione;1;Trasferimenti correnti a organismi interni e/o unità locali della amministrazione;18/12/2020
1406;1;0;250;250;AMICI DEL CUORE; ;ASSEGNAZIONE CONTRIBUTI AD ASSOCIAZIONI ED ENTI ANNO 2020.;18/12/2020;574;0;418;1;Spese correnti;4;Trasferimenti correnti;1;Trasferimenti correnti a Amministrazioni Pubbliche;4;Trasferimenti correnti a organismi interni e/o unità locali della amministrazione;1;Trasferimenti correnti a organismi interni e/o unità locali della amministrazione;18/12/2020
1407;1;0;500;500;CENTRO PARROCCHIALE DI S.ZENONE; ;ASSEGNAZIONE CONTRIBUTI AD ASSOCIAZIONI ED ENTI ANNO 2020.;18/12/2020;574;0;419;1;Spese correnti;4;Trasferimenti correnti;1;Trasferimenti correnti a Amministrazioni Pubbliche;4;Trasferimenti correnti a organismi interni e/o unità locali della amministrazione;1;Trasferimenti correnti a organismi interni e/o unità locali della amministrazione;18/12/2020
1408;1;0;150;150;ACAT - ULSS 8 ONLUS; ;ASSEGNAZIONE CONTRIBUTI AD ASSOCIAZIONI ED ENTI ANNO 2020.;18/12/2020;574;0;420;1;Spese correnti;4;Trasferimenti correnti;1;Trasferimenti correnti a Amministrazioni Pubbliche;4;Trasferimenti correnti a organismi interni e/o unità locali della amministrazione;1;Trasferimenti correnti a organismi interni e/o unità locali della amministrazione;18/12/2020
1409;1;0;200;200;GRUPPO ALPINI SAN ZENONE PRESIDENTE TORRESAN PIO; ;ASSEGNAZIONE CONTRIBUTI AD ASSOCIAZIONI ED ENTI ANNO 2020.;18/12/2020;574;0;421;1;Spese correnti;4;Trasferimenti correnti;1;Trasferimenti correnti a Amministrazioni Pubbliche;4;Trasferimenti correnti a organismi interni e/o unità locali della amministrazione;1;Trasferimenti correnti a organismi interni e/o unità locali della amministrazione;18/12/2020
1410;1;0;200;200;GRUPPO ALPINI DI CA'RAINATI; ;ASSEGNAZIONE CONTRIBUTI AD ASSOCIAZIONI ED ENTI ANNO 2020.;18/12/2020;574;0;422;1;Spese correnti;4;Trasferimenti correnti;1;Trasferimenti correnti a Amministrazioni Pubbliche;4;Trasferimenti correnti a organismi interni e/o unità locali della amministrazione;1;Trasferimenti correnti a organismi interni e/o unità locali della amministrazione;18/12/2020
1411;1;0;200;200;GRUPPO ALPINI DI LIEDOLO; ;ASSEGNAZIONE CONTRIBUTI AD ASSOCIAZIONI ED ENTI ANNO 2020.;18/12/2020;574;0;423;1;Spese correnti;4;Trasferimenti correnti;1;Trasferimenti correnti a Amministrazioni Pubbliche;4;Trasferimenti correnti a organismi interni e/o unità locali della amministrazione;1;Trasferimenti correnti a organismi interni e/o unità locali della amministrazione;18/12/2020
1412;1;0;1.000,00;1.000,00;ASSOCIAZIONE FAMIGLIE ATLANTIS APS; ;ASSEGNAZIONE CONTRIBUTI AD ASSOCIAZIONI ED ENTI ANNO 2020.;18/12/2020;574;0;424;1;Spese correnti;4;Trasferimenti correnti;1;Trasferimenti correnti a Amministrazioni Pubbliche;4;Trasferimenti correnti a organismi interni e/o unità locali della amministrazione;1;Trasferimenti correnti a organismi interni e/o unità locali della amministrazione;18/12/2020
1413;1;0;8.700,00;8.700,00;F.C.D. UNION EZZELINA; ;CONTRIBUTO F.C.D. UNION EZZELINA;19/12/2020;533;0;426;1;Spese correnti;4;Trasferimenti correnti;1;Trasferimenti correnti a Amministrazioni Pubbliche;4;Trasferimenti correnti a organismi interni e/o unità locali della amministrazione;1;Trasferimenti correnti a organismi interni e/o unità locali della amministrazione;19/12/2020
1414;1;0;15.000,00;15.000,00;A.S.D. EZZELINA VOLLEY CARINATESE; ;CONTRIBUTO VOLLEY;19/12/2020;533;0;427;1;Spese correnti;4;Trasferimenti correnti;1;Trasferimenti correnti a Amministrazioni Pubbliche;4;Trasferimenti correnti a organismi interni e/o unità locali della amministrazione;1;Trasferimenti correnti a organismi interni e/o unità locali della amministrazione;19/12/2020
1415;1;0;2.500,00;2.500,00;ATTIVITA' MOTORIE LA TORRE; ;ASSOCIAZIONE MOTORIA LA TORRE;19/12/2020;533;0;428;1;Spese correnti;4;Trasferimenti correnti;1;Trasferimenti correnti a Amministrazioni Pubbliche;4;Trasferimenti correnti a organismi interni e/o unità locali della amministrazione;1;Trasferimenti correnti a organismi interni e/o unità locali della amministrazione;19/12/2020
1416;1;0;3.790,40;3.790,40;TESORERIA PROVINCIALE DELLO STATO; ;VERSAMENTO ACCONTO I.V.A. COD. 618E.;19/12/2020;660;0;0;1;Spese correnti;10;Altre spese correnti;3;Versamenti IVA a debito;1;Versamenti IVA a debito per le gestioni commerciali;1;Versamenti IVA a debito per le gestioni commerciali;19/12/2020
1420;1;0;52,5;52,5;CENTRO MEDICO POLISPECIALISTICO SRL;Z692FD2CC7;SALDO Fatt.n. 2582  del 18/12/2020 ESECUZIONE TAMPONI RAPIDI PER DIPENDENTI COMNUNALI;21/12/2020;160;0;407;1;Spese correnti;3;Acquisto di beni e servizi;2;Acquisto di servizi;18;Servizi sanitari;1;Spese per accertamenti sanitari resi necessari dall'attività lavorativa;21/12/2020
1421;1;0;212,06;212,06;CASSA DEPOSITI E PRESTITI S.P.A.; ;SOGGETTI DIVERSI-PAGAMENTO ADUE B2B            COD DISP 012012180G0IAN NOME  CASSA DEPOSITI E PRESTITI SPA MANDATO 292844000914499 PFM   RUOLO 06052 RATE AMMORTAMENTO PRESTITI M (P. 71 -R. 1609 del 31/12/2020);31/12/2020;316;0;265;1;Spese correnti;7;Interessi passivi;5;Interessi su Mutui e altri finanziamenti a medio lungo termine;4;Interessi passivi su finanziamenti a medio lungo termine a Imprese;4;Interessi passivi a Cassa Depositi e Prestiti - Gestione Tesoro su mutui e altri finanziamenti a medio lungo termine;31/12/2020
1422;1;0;1.005,90;1.005,90;CASSA DEPOSITI E PRESTITI S.P.A.; ;SOGGETTI DIVERSI-PAGAMENTO ADUE B2B            COD DISP 012012180G0IAN NOME  CASSA DEPOSITI E PRESTITI SPA MANDATO 292844000914499 PFM   RUOLO 06052 RATE AMMORTAMENTO PRESTITI M (P. 71 -R. 1609 del 31/12/2020);31/12/2020;421;0;266;1;Spese correnti;7;Interessi passivi;5;Interessi su Mutui e altri finanziamenti a medio lungo termine;4;Interessi passivi su finanziamenti a medio lungo termine a Imprese;4;Interessi passivi a Cassa Depositi e Prestiti - Gestione Tesoro su mutui e altri finanziamenti a medio lungo termine;31/12/2020
1423;1;0;1.021,74;1.021,74;CASSA DEPOSITI E PRESTITI S.P.A.; ;SOGGETTI DIVERSI-PAGAMENTO ADUE B2B            COD DISP 012012180G0IAN NOME  CASSA DEPOSITI E PRESTITI SPA MANDATO 292844000914499 PFM   RUOLO 06052 RATE AMMORTAMENTO PRESTITI M (P. 71 -R. 1609 del 31/12/2020);31/12/2020;604;0;268;1;Spese correnti;7;Interessi passivi;5;Interessi su Mutui e altri finanziamenti a medio lungo termine;4;Interessi passivi su finanziamenti a medio lungo termine a Imprese;4;Interessi passivi a Cassa Depositi e Prestiti - Gestione Tesoro su mutui e altri finanziamenti a medio lungo termine;31/12/2020
1424;1;0;7.170,57;7.170,57;CASSA DEPOSITI E PRESTITI S.P.A.; ;SOGGETTI DIVERSI-PAGAMENTO ADUE B2B            COD DISP 012012180G0IAS NOME  CASSA DEPOSITI E PRESTITI SPA MANDATO 292844000914499 PFM   RUOLO 06052 RATE AMMORTAMENTO PRESTITI S (P. 72 -R. 1610 del 31/12/2020);31/12/2020;604;0;268;1;Spese correnti;7;Interessi passivi;5;Interessi su Mutui e altri finanziamenti a medio lungo termine;4;Interessi passivi su finanziamenti a medio lungo termine a Imprese;3;Interessi passivi a Cassa Depositi e Prestiti SPA su mutui e altri finanziamenti a medio lungo termine;31/12/2020
